Workbook

Sheet APU Profile Form
C3: DEPARTMENT:
C5: APU NAME:
C7: APU CODE:
C9: DATE SUBMITTED: | D9: =TODAY() -> 2024-10-04
C11: Description of APU: Please include criteria used.
C22: PROPOSED HEALTH SCIENCES SALARY SCALE:
C23: (Using Scale pay numbers: 1 thru 9. Insert Scale pay number assigned to APU for each of 5 future years.)
D25: 2024-07-01 | F25: 2025-07-01 | G25: =E25 -> 0 | H25: 2026-07-01 | I25: =G25 -> 0
D27: 2027-07-01 | E27: =I25 -> 0 | F27: 2028-07-01 | G27: =E27 -> 0
C31: APU Membership:
C32: (Use current established Scale Pay rates at the time of the submission. DO NOT USE blended FY pay rates. Attach another sheet if necessary.)
F34: X Salary | G34: X' Salary | H34: Off-Scale Salary | I34: Total Covered Comp | J34: Y Salary | K34: Total Negotiated
C35: Name | D35: Rank | E35: Step | F35: Annual Rate | G35: Annual Rate | H35: Annual Rate | I35: Annual Rate | J35: Annual Rate | K35: Annual Rate | M35: X | N35: X'
I36: =F36+G36+H36 -> 0 | K36: =I36+J36 -> 0
I37: =F37+G37+H37 -> 0 | K37: =I37+J37 -> 0 | M37: 193800 | N37: 19400
I38: 0 | K38: 0 | M38: 166300 | N38: 16600
I39: 0 | K39: 0 | M39: 133900 | N39: 13400
I40: 0 | K40: 0 | M40: 108900 | N40: 10900
I41: 0 | K41: 0 | M41: 108900 | N41: 10900
I42: 0 | K42: 0 | M42: 88300 | N42: 8800
I43: 0 | K43: 0 | M43: 88300 | N43: 8800
I44: 0 | K44: 0 | M44: 88300 | N44: 8800
I45: 0 | K45: 0 | M45: 108900 | N45: 10900
I46: 0 | K46: 0 | M46: 88300 | N46: 8800
I47: 0 | K47: 0 | M47: 88300 | N47: 8800
I48: 0 | K48: 0 | M48: 88300 | N48: 8800
I49: 0 | K49: 0 | M49: 98500 | N49: 9900
I50: 0 | K50: 0 | M50: 143900 | N50: 14400
I51: 0 | K51: 0 | M51: 103600 | N51: 10400
I52: 0 | K52: 0
I53: 0 | K53: 0
I54: 0 | K54: 0 | M54: 193800 | N54: 19400
I55: 0 | K55: 0 | M55: 166300 | N55: 16600
I56: 0 | K56: 0 | M56: 133900 | N56: 13400
I57: 0 | K57: 0 | M57: 108900 | N57: 10900
I58: 0 | K58: 0 | M58: 108900 | N58: 10900
I59: 0 | K59: 0 | M59: 88300 | N59: 8800
I60: 0 | K60: 0 | M60: 88300 | N60: 8800
I61: 0 | K61: 0 | M61: 88300 | N61: 8800
I62: 0 | K62: 0 | M62: 108900 | N62: 10900
I63: 0 | K63: 0 | M63: 88300 | N63: 8800
I64: 0 | K64: 0 | M64: 88300 | N64: 8800
I65: 0 | K65: 0 | M65: 88300 | N65: 8800
I66: 0 | K66: 0 | M66: 88300 | N66: 8800
I67: 0 | K67: 0 | M67: 88300 | N67: 8800
I68: 0 | K68: 0 | M68: 88300 | N68: 8800
I69: 0 | K69: 0 | M69: 88300 | N69: 8800
I70: 0 | K70: 0 | M70: 88300 | N70: 8800
I71: 0 | K71: 0 | M71: 88300 | N71: 8800
I72: 0 | K72: 0 | M72: 88300 | N72: 8800
I73: 0 | K73: 0 | M73: 88300 | N73: 8800
I74: 0 | K74: 0 | M74: 88300 | N74: 8800
I75: 0 | K75: 0 | M75: 88300 | N75: 8800
I76: 0 | K76: 0 | M76: 88300 | N76: 8800
I77: 0 | K77: 0 | M77: 88300 | N77: 8800
I78: 0 | K78: 0 | M78: 88300 | N78: 8800
I79: 0 | K79: 0 | M79: 88300 | N79: 8800
I80: 0 | K80: 0 | M80: 88300 | N80: 8800
I81: 0 | K81: 0 | M81: 88300 | N81: 8800
I82: 0 | K82: 0 | M82: 88300 | N82: 8800
I83: 0 | K83: 0 | M83: 88300 | N83: 8800
I84: 0 | K84: 0 | M84: 88300 | N84: 8800
I85: 0 | K85: 0 | M85: 88300 | N85: 8800
I86: 0 | K86: 0 | M86: 88300 | N86: 8800
I87: 0 | K87: 0 | M87: 88300 | N87: 8800
I88: 0 | K88: 0 | M88: 88300 | N88: 8800
I89: 0 | K89: 0 | M89: 88300 | N89: 8800
I90: 0 | K90: 0 | M90: 88300 | N90: 8800
I91: 0 | K91: 0 | M91: 88300 | N91: 8800
I92: 0 | K92: 0 | M92: 88300 | N92: 8800
I93: 0 | K93: 0 | M93: 88300 | N93: 8800
I94: 0 | K94: 0 | M94: 88300 | N94: 8800
I95: 0 | K95: 0 | M95: 88300 | N95: 8800
I96: 0 | K96: 0 | M96: 88300 | N96: 8800
I97: 0 | K97: 0 | M97: 88300 | N97: 8800
I98: 0 | K98: 0 | M98: 88300 | N98: 8800
I99: 0 | K99: 0 | M99: 88300 | N99: 8800
I100: 0 | K100: 0 | M100: 88300 | N100: 8800
I101: =F101+G101+H101 -> 0 | K101: =I101+J101 -> 0 | M101: 88300 | N101: 8800
I102: 0 | K102: 0 | M102: 88300 | N102: 8800
I103: 0 | K103: 0 | M103: 88300 | N103: 8800
I104: 0 | K104: 0 | M104: 88300 | N104: 8800
I105: 0 | K105: 0 | M105: 88300 | N105: 8800
I106: 0 | K106: 0 | M106: 88300 | N106: 8800
I107: 0 | K107: 0 | M107: 88300 | N107: 8800
I108: 0 | K108: 0 | M108: 88300 | N108: 8800
I109: 0 | K109: 0 | M109: 88300 | N109: 8800
I110: 0 | K110: 0 | M110: 88300 | N110: 8800
I111: 0 | K111: 0 | M111: 88300 | N111: 8800
I112: 0 | K112: 0 | M112: 88300 | N112: 8800
I113: 0 | K113: 0 | M113: 88300 | N113: 8800
I114: 0 | K114: 0 | M114: 88300 | N114: 8800
I115: 0 | K115: 0 | M115: 88300 | N115: 8800
I116: 0 | K116: 0 | M116: 88300 | N116: 8800
I117: 0 | K117: 0 | M117: 88300 | N117: 8800
I118: 0 | K118: 0 | M118: 88300 | N118: 8800
I119: 0 | K119: 0 | M119: 88300 | N119: 8800
I120: 0 | K120: 0 | M120: 88300 | N120: 8800
I121: 0 | K121: 0 | M121: 88300 | N121: 8800
I122: 0 | K122: 0 | M122: 88300 | N122: 8800
I123: 0 | K123: 0 | M123: 88300 | N123: 8800
I124: 0 | K124: 0 | M124: 88300 | N124: 8800
I125: 0 | K125: 0 | M125: 88300 | N125: 8800
I126: 0 | K126: 0 | M126: 88300 | N126: 8800
I127: 0 | K127: 0 | M127: 88300 | N127: 8800
I128: 0 | K128: 0 | M128: 88300 | N128: 8800
I129: 0 | K129: 0 | M129: 88300 | N129: 8800
I130: 0 | K130: 0 | M130: 88300 | N130: 8800
I131: 0 | K131: 0 | M131: 88300 | N131: 8800
I132: 0 | K132: 0 | M132: 88300 | N132: 8800
I133: 0 | K133: 0 | M133: 88300 | N133: 8800
I134: 0 | K134: 0 | M134: 88300 | N134: 8800
I135: 0 | K135: 0 | M135: 88300 | N135: 8800
I136: 0 | K136: 0 | M136: 88300 | N136: 8800
I137: 0 | K137: 0 | M137: 88300 | N137: 8800
I138: 0 | K138: 0 | M138: 88300 | N138: 8800
I139: 0 | K139: 0 | M139: 88300 | N139: 8800
I140: 0 | K140: 0 | M140: 88300 | N140: 8800
I141: 0 | K141: 0 | M141: 88300 | N141: 8800
I142: 0 | K142: 0 | M142: 88300 | N142: 8800
I143: 0 | K143: 0 | M143: 88300 | N143: 8800
I144: 0 | K144: 0 | M144: 88300 | N144: 8800
I145: 0 | K145: 0 | M145: 88300 | N145: 8800
I146: 0 | K146: 0 | M146: 88300 | N146: 8800
I147: 0 | K147: 0 | M147: 88300 | N147: 8800
I148: 0 | K148: 0 | M148: 88300 | N148: 8800
I149: 0 | K149: 0 | M149: 88300 | N149: 8800
I150: 0 | K150: 0 | M150: 88300 | N150: 8800
I151: 0 | K151: 0 | M151: 88300 | N151: 8800
I152: 0 | K152: 0 | M152: 88300 | N152: 8800
I153: 0 | K153: 0 | M153: 88300 | N153: 8800
I154: 0 | K154: 0 | M154: 88300 | N154: 8800
I155: 0 | K155: 0 | M155: 88300 | N155: 8800
I156: 0 | K156: 0 | M156: 88300 | N156: 8800
I157: 0 | K157: 0 | M157: 88300 | N157: 8800
I158: 0 | K158: 0 | M158: 88300 | N158: 8800
I159: 0 | K159: 0 | M159: 88300 | N159: 8800
I160: 0 | K160: 0 | M160: 88300 | N160: 8800
I161: 0 | K161: 0 | M161: 88300 | N161: 8800
I162: 0 | K162: 0 | M162: 88300 | N162: 8800
I163: 0 | K163: 0 | M163: 88300 | N163: 8800
I164: 0 | K164: 0 | M164: 88300 | N164: 8800
I165: =F165+G165+H165 -> 0 | K165: =I165+J165 -> 0 | M165: 88300 | N165: 8800
C167: APPROVALS:
C169: AVC/DBO | I169: Date
C171: Department Chair | I171: Date
C173: VCHS/Dean | I173: Date
C175: Other | I175: Date
C178: This form is routed to Han Ho (h3ho@health.ucsd.edu) or ARCrequest@health.ucsd.edu prior to submission to the Dean.

Sheet checklist
A1: Checklist to review before sending for Dean's or VC's approval:
A4: APU profile form:
B5: add all Faculty that belong to the code (including all the new Faculty appointments started during the current/prior FY)
B6: remove all Faculty that no longer belong to the code
B7: make sure all salary are based on the current, approved rank, step, and HSCP salary scales (do not use projected info)
B8: * if APU scale is being changed for the APU code -> calculate the X', offscale, and Y based on the changed APU scale for ALL Faculty being listed
B9: * if Faculty is being added to the APU code -> calculate the X', offscale, and Y based on the changed APU scale for the newly added Faculty only
B10: review to see if any APU code has fewer than 5 members, if so, this will be a compliance issue and department will need to provide justification in the memo to ask for the exceptional approval
A13: Chair's memo needs to include the following info:
B14: list of all the changes being requested
B15: justification for the requested changes
B16: confirmation that all APU members are in good standing
B17: confirmation that the department accepts 415(m) liability that may result
B18: confirmation that the APU will be able to maintain the covered compensation rate for at least 3 years
B19: if any APU code has fewer than 5 members, need to provide justification in the memo to ask for the exceptional approval

Sheet Roster (hidden)
A1: I N S T R U C T I O N S :
A2: 1. Click the | C2: button on the Roster tab, to clear existing data and prepare the form for entry. | I2: 6. Paste Values (V) into the section highlighted yellow below (starting in Cell C10).
A3: 2. In ARC ServiceNow, go to ARC Report Library > Compensation Reports > APU Profile Form. | I3: 7. Type in the APU Code in Cell A10 and the APU Scale in Cell B10 (highlighted orange).
A4: 3. In the APU Name Search box, type in the desired APU Code and hit Enter. | I4: 7. Delete employees moving out of the APU and add employees moving into the APU.
A5: 4. Right click anywhere in the headers, go to the Export menu and select Excel (.xlsx). | I5: 8. Sort Column D (AIR Profile) A to Z, so faculty members appear in alphabetical order.
A6: 5. Copy all data from the exported spreadsheet in Column C through Column J, starting at Row 2. | I6: 10. On the APU Profile Form, hide all the blank linges and highlight the rows with new faculty.
A8: MANUAL - MANUAL | C8: A I R E L - A I R E L - A I R E L - A I R E L - A I R E L - A I R E L - A I R E L - A I R E L - A I R E L | K8: CALCULATED - CALCULATED - CALCULATED - CALCULATED
A9: APU Code | B9: APU Scale | C9: Department | D9: AIR Profile | E9: Rank | F9: Step | G9: Base (X) | H9: Off Scale X | I9: Total Negotiated (100%) | J9: Stipend | K9: Base (X) | L9: X' | M9: Total Off-Scale (X+X') | N9: Total Covered Comp | O9: Y | P9: RankStepScale
A10: ORT001 | B10: 6 | C10: ORTHOPAEDIC SURGERY | D10: Allen, Richard | E10: Full | F10: II | G10: 135400 | H10: 0 | I10: 300000 | J10: 0 | K10: =IFERROR(VLOOKUP(P10,'FY23-FY24 Scales'!A:J,10,FALSE),G10) -> 135400 | L10: =IFERROR(VLOOKUP(P10,'FY23-FY24 Scales'!A:K,11,FALSE),ROUND(G10*VLOOKUP(B10*1,'APU Scale'!A:B,2,FALSE)-G10,-2)) -> 88100 | M10: =ROUND(H10*VLOOKUP(B10*1,'APU Scale'!A:B,2,FALSE),-2) -> 0 | N10: =K10+L10+M10 -> 223500 | O10: =IF(I10-J10-N10<0,0,I10-J10-N10) -> 76500 | P10: =CONCATENATE(E10,F10,B10) -> FullII6
A11: =A10 -> ORT001 | B11: =B10 -> 6 | C11: ORTHOPAEDIC SURGERY | D11: Blais, Micah | E11: Assistant | F11: II | G11: 91300 | H11: 0 | I11: 150700 | J11: 0 | K11: =IFERROR(VLOOKUP(P11,'FY23-FY24 Scales'!A:J,10,FALSE),G11) -> 91300 | L11: =IFERROR(VLOOKUP(P11,'FY23-FY24 Scales'!A:K,11,FALSE),ROUND(G11*VLOOKUP(B11*1,'APU Scale'!A:B,2,FALSE)-G11,-2)) -> 59400 | M11: =ROUND(H11*VLOOKUP(B11*1,'APU Scale'!A:B,2,FALSE),-2) -> 0 | N11: 150700 | O11: 0 | P11: AssistantII6
A12: ORT001 | B12: 6 | C12: ORTHOPAEDIC SURGERY | D12: Chiarappa, Frank | E12: Assistant | F12: IV | G12: 101700 | H12: 0 | I12: 212100 | J12: 0 | K12: =IFERROR(VLOOKUP(P12,'FY23-FY24 Scales'!A:J,10,FALSE),G12) -> 101700 | L12: =IFERROR(VLOOKUP(P12,'FY23-FY24 Scales'!A:K,11,FALSE),ROUND(G12*VLOOKUP(B12*1,'APU Scale'!A:B,2,FALSE)-G12,-2)) -> 66200 | M12: =ROUND(H12*VLOOKUP(B12*1,'APU Scale'!A:B,2,FALSE),-2) -> 0 | N12: 167900 | O12: 44200 | P12: AssistantIV6
A13: ORT001 | B13: 6 | C13: ORTHOPAEDIC SURGERY | D13: Foran, Ian | E13: Assistant | F13: III | G13: 96400 | H13: 0 | I13: 212100 | J13: 0 | K13: =IFERROR(VLOOKUP(P13,'FY23-FY24 Scales'!A:J,10,FALSE),G13) -> 96400 | L13: =IFERROR(VLOOKUP(P13,'FY23-FY24 Scales'!A:K,11,FALSE),ROUND(G13*VLOOKUP(B13*1,'APU Scale'!A:B,2,FALSE)-G13,-2)) -> 62700 | M13: =ROUND(H13*VLOOKUP(B13*1,'APU Scale'!A:B,2,FALSE),-2) -> 0 | N13: 159100 | O13: 53000 | P13: AssistantIII6
A14: ORT001 | B14: 6 | C14: ORTHOPAEDIC SURGERY | D14: Girard, Paul | E14: Full | F14: II | G14: 135400 | H14: 0 | I14: 223500 | J14: 0 | K14: =IFERROR(VLOOKUP(P14,'FY23-FY24 Scales'!A:J,10,FALSE),G14) -> 135400 | L14: =IFERROR(VLOOKUP(P14,'FY23-FY24 Scales'!A:K,11,FALSE),ROUND(G14*VLOOKUP(B14*1,'APU Scale'!A:B,2,FALSE)-G14,-2)) -> 88100 | M14: =ROUND(H14*VLOOKUP(B14*1,'APU Scale'!A:B,2,FALSE),-2) -> 0 | N14: 223500 | O14: 0 | P14: FullII6
A15: ORT001 | B15: 6 | C15: ORTHOPAEDIC SURGERY | D15: Gonzales, Francis | E15: Full | F15: I | G15: 125700 | H15: 0 | I15: 212100 | J15: 0 | K15: =IFERROR(VLOOKUP(P15,'FY23-FY24 Scales'!A:J,10,FALSE),G15) -> 125700 | L15: =IFERROR(VLOOKUP(P15,'FY23-FY24 Scales'!A:K,11,FALSE),ROUND(G15*VLOOKUP(B15*1,'APU Scale'!A:B,2,FALSE)-G15,-2)) -> 81800 | M15: =ROUND(H15*VLOOKUP(B15*1,'APU Scale'!A:B,2,FALSE),-2) -> 0 | N15: 207500 | O15: 4600 | P15: FullI6
A16: ORT001 | B16: 6 | C16: ORTHOPAEDIC SURGERY | D16: Hentzen, Eric | E16: Full | F16: II | G16: 135400 | H16: 0 | I16: 223500 | J16: 0 | K16: =IFERROR(VLOOKUP(P16,'FY23-FY24 Scales'!A:J,10,FALSE),G16) -> 135400 | L16: =IFERROR(VLOOKUP(P16,'FY23-FY24 Scales'!A:K,11,FALSE),ROUND(G16*VLOOKUP(B16*1,'APU Scale'!A:B,2,FALSE)-G16,-2)) -> 88100 | M16: =ROUND(H16*VLOOKUP(B16*1,'APU Scale'!A:B,2,FALSE),-2) -> 0 | N16: 223500 | O16: 0 | P16: FullII6
A17: ORT001 | B17: 6 | C17: ORTHOPAEDIC SURGERY | D17: Kent, William | E17: Associate | F17: I | G17: 107300 | H17: 0 | I17: 212100 | J17: 0 | K17: =IFERROR(VLOOKUP(P17,'FY23-FY24 Scales'!A:J,10,FALSE),G17) -> 107300 | L17: =IFERROR(VLOOKUP(P17,'FY23-FY24 Scales'!A:K,11,FALSE),ROUND(G17*VLOOKUP(B17*1,'APU Scale'!A:B,2,FALSE)-G17,-2)) -> 69800 | M17: =ROUND(H17*VLOOKUP(B17*1,'APU Scale'!A:B,2,FALSE),-2) -> 0 | N17: 177100 | O17: 35000 | P17: AssociateI6
A18: ORT001 | B18: 6 | C18: ORTHOPAEDIC SURGERY | D18: Leek, Bryan | E18: Associate | F18: IV | G18: 125600 | H18: 0 | I18: 212100 | J18: 0 | K18: =IFERROR(VLOOKUP(P18,'FY23-FY24 Scales'!A:J,10,FALSE),G18) -> 125600 | L18: =IFERROR(VLOOKUP(P18,'FY23-FY24 Scales'!A:K,11,FALSE),ROUND(G18*VLOOKUP(B18*1,'APU Scale'!A:B,2,FALSE)-G18,-2)) -> 81800 | M18: =ROUND(H18*VLOOKUP(B18*1,'APU Scale'!A:B,2,FALSE),-2) -> 0 | N18: 207400 | O18: 4700 | P18: AssociateIV6
A19: ORT001 | B19: 6 | C19: ORTHOPAEDIC SURGERY | D19: Mitchell, Joseph | E19: Assistant | F19: III | G19: 96400 | H19: 0 | I19: 212100 | J19: 0 | K19: =IFERROR(VLOOKUP(P19,'FY23-FY24 Scales'!A:J,10,FALSE),G19) -> 96400 | L19: =IFERROR(VLOOKUP(P19,'FY23-FY24 Scales'!A:K,11,FALSE),ROUND(G19*VLOOKUP(B19*1,'APU Scale'!A:B,2,FALSE)-G19,-2)) -> 62700 | M19: =ROUND(H19*VLOOKUP(B19*1,'APU Scale'!A:B,2,FALSE),-2) -> 0 | N19: 159100 | O19: 53000 | P19: AssistantIII6
A20: ORT001 | B20: 6 | C20: ORTHOPAEDIC SURGERY | D20: O'leary, Ryan | E20: Assistant | F20: II | G20: 91300 | H20: 0 | I20: 212100 | J20: 0 | K20: =IFERROR(VLOOKUP(P20,'FY23-FY24 Scales'!A:J,10,FALSE),G20) -> 91300 | L20: =IFERROR(VLOOKUP(P20,'FY23-FY24 Scales'!A:K,11,FALSE),ROUND(G20*VLOOKUP(B20*1,'APU Scale'!A:B,2,FALSE)-G20,-2)) -> 59400 | M20: =ROUND(H20*VLOOKUP(B20*1,'APU Scale'!A:B,2,FALSE),-2) -> 0 | N20: 150700 | O20: 61400 | P20: AssistantII6
A21: ORT001 | B21: 6 | C21: ORTHOPAEDIC SURGERY | D21: Robertson, Catherine | E21: Full | F21: I | G21: 125700 | H21: 0 | I21: 212100 | J21: 0 | K21: =IFERROR(VLOOKUP(P21,'FY23-FY24 Scales'!A:J,10,FALSE),G21) -> 125700 | L21: =IFERROR(VLOOKUP(P21,'FY23-FY24 Scales'!A:K,11,FALSE),ROUND(G21*VLOOKUP(B21*1,'APU Scale'!A:B,2,FALSE)-G21,-2)) -> 81800 | M21: =ROUND(H21*VLOOKUP(B21*1,'APU Scale'!A:B,2,FALSE),-2) -> 0 | N21: 207500 | O21: 4600 | P21: FullI6
A22: ORT001 | B22: 6 | C22: ORTHOPAEDIC SURGERY | D22: Sullivan, Thomas | E22: Assistant | F22: III | G22: 96400 | H22: 0 | I22: 212100 | J22: 0 | K22: =IFERROR(VLOOKUP(P22,'FY23-FY24 Scales'!A:J,10,FALSE),G22) -> 96400 | L22: =IFERROR(VLOOKUP(P22,'FY23-FY24 Scales'!A:K,11,FALSE),ROUND(G22*VLOOKUP(B22*1,'APU Scale'!A:B,2,FALSE)-G22,-2)) -> 62700 | M22: =ROUND(H22*VLOOKUP(B22*1,'APU Scale'!A:B,2,FALSE),-2) -> 0 | N22: 159100 | O22: 53000 | P22: AssistantIII6
A23: ORT001 | B23: 6 | C23: ORTHOPAEDIC SURGERY | D23: Zlomislic, Vinko | E23: Associate | F23: III | G23: 118900 | H23: 0 | I23: 212100 | J23: 0 | K23: =IFERROR(VLOOKUP(P23,'FY23-FY24 Scales'!A:J,10,FALSE),G23) -> 118900 | L23: =IFERROR(VLOOKUP(P23,'FY23-FY24 Scales'!A:K,11,FALSE),ROUND(G23*VLOOKUP(B23*1,'APU Scale'!A:B,2,FALSE)-G23,-2)) -> 77300 | M23: =ROUND(H23*VLOOKUP(B23*1,'APU Scale'!A:B,2,FALSE),-2) -> 0 | N23: 196200 | O23: 15900 | P23: AssociateIII6
A24: ORT001 | B24: 6 | K24: =IFERROR(VLOOKUP(P24,'FY23-FY24 Scales'!A:J,10,FALSE),G24) -> 0 | L24: =IFERROR(VLOOKUP(P24,'FY23-FY24 Scales'!A:K,11,FALSE),ROUND(G24*VLOOKUP(B24*1,'APU Scale'!A:B,2,FALSE)-G24,-2)) -> 0 | M24: =ROUND(H24*VLOOKUP(B24*1,'APU Scale'!A:B,2,FALSE),-2) -> 0 | N24: 0 | O24: 0 | P24: 6
A25: ORT001 | B25: 6 | K25: =IFERROR(VLOOKUP(P25,'FY23-FY24 Scales'!A:J,10,FALSE),G25) -> 0 | L25: =IFERROR(VLOOKUP(P25,'FY23-FY24 Scales'!A:K,11,FALSE),ROUND(G25*VLOOKUP(B25*1,'APU Scale'!A:B,2,FALSE)-G25,-2)) -> 0 | M25: =ROUND(H25*VLOOKUP(B25*1,'APU Scale'!A:B,2,FALSE),-2) -> 0 | N25: 0 | O25: 0 | P25: 6
A26: ORT001 | B26: 6 | K26: =IFERROR(VLOOKUP(P26,'FY23-FY24 Scales'!A:J,10,FALSE),G26) -> 0 | L26: =IFERROR(VLOOKUP(P26,'FY23-FY24 Scales'!A:K,11,FALSE),ROUND(G26*VLOOKUP(B26*1,'APU Scale'!A:B,2,FALSE)-G26,-2)) -> 0 | M26: =ROUND(H26*VLOOKUP(B26*1,'APU Scale'!A:B,2,FALSE),-2) -> 0 | N26: 0 | O26: 0 | P26: 6
A27: ORT001 | B27: 6 | K27: =IFERROR(VLOOKUP(P27,'FY23-FY24 Scales'!A:J,10,FALSE),G27) -> 0 | L27: =IFERROR(VLOOKUP(P27,'FY23-FY24 Scales'!A:K,11,FALSE),ROUND(G27*VLOOKUP(B27*1,'APU Scale'!A:B,2,FALSE)-G27,-2)) -> 0 | M27: =ROUND(H27*VLOOKUP(B27*1,'APU Scale'!A:B,2,FALSE),-2) -> 0 | N27: 0 | O27: 0 | P27: 6
A28: ORT001 | B28: 6 | K28: =IFERROR(VLOOKUP(P28,'FY23-FY24 Scales'!A:J,10,FALSE),G28) -> 0 | L28: =IFERROR(VLOOKUP(P28,'FY23-FY24 Scales'!A:K,11,FALSE),ROUND(G28*VLOOKUP(B28*1,'APU Scale'!A:B,2,FALSE)-G28,-2)) -> 0 | M28: =ROUND(H28*VLOOKUP(B28*1,'APU Scale'!A:B,2,FALSE),-2) -> 0 | N28: 0 | O28: 0 | P28: 6
A29: ORT001 | B29: 6 | K29: =IFERROR(VLOOKUP(P29,'FY23-FY24 Scales'!A:J,10,FALSE),G29) -> 0 | L29: =IFERROR(VLOOKUP(P29,'FY23-FY24 Scales'!A:K,11,FALSE),ROUND(G29*VLOOKUP(B29*1,'APU Scale'!A:B,2,FALSE)-G29,-2)) -> 0 | M29: =ROUND(H29*VLOOKUP(B29*1,'APU Scale'!A:B,2,FALSE),-2) -> 0 | N29: 0 | O29: 0 | P29: 6
A30: ORT001 | B30: 6 | K30: =IFERROR(VLOOKUP(P30,'FY23-FY24 Scales'!A:J,10,FALSE),G30) -> 0 | L30: =IFERROR(VLOOKUP(P30,'FY23-FY24 Scales'!A:K,11,FALSE),ROUND(G30*VLOOKUP(B30*1,'APU Scale'!A:B,2,FALSE)-G30,-2)) -> 0 | M30: =ROUND(H30*VLOOKUP(B30*1,'APU Scale'!A:B,2,FALSE),-2) -> 0 | N30: 0 | O30: 0 | P30: 6
A31: ORT001 | B31: 6 | K31: =IFERROR(VLOOKUP(P31,'FY23-FY24 Scales'!A:J,10,FALSE),G31) -> 0 | L31: =IFERROR(VLOOKUP(P31,'FY23-FY24 Scales'!A:K,11,FALSE),ROUND(G31*VLOOKUP(B31*1,'APU Scale'!A:B,2,FALSE)-G31,-2)) -> 0 | M31: =ROUND(H31*VLOOKUP(B31*1,'APU Scale'!A:B,2,FALSE),-2) -> 0 | N31: 0 | O31: 0 | P31: 6
A32: ORT001 | B32: 6 | K32: =IFERROR(VLOOKUP(P32,'FY23-FY24 Scales'!A:J,10,FALSE),G32) -> 0 | L32: =IFERROR(VLOOKUP(P32,'FY23-FY24 Scales'!A:K,11,FALSE),ROUND(G32*VLOOKUP(B32*1,'APU Scale'!A:B,2,FALSE)-G32,-2)) -> 0 | M32: =ROUND(H32*VLOOKUP(B32*1,'APU Scale'!A:B,2,FALSE),-2) -> 0 | N32: 0 | O32: 0 | P32: 6
A33: ORT001 | B33: 6 | K33: =IFERROR(VLOOKUP(P33,'FY23-FY24 Scales'!A:J,10,FALSE),G33) -> 0 | L33: =IFERROR(VLOOKUP(P33,'FY23-FY24 Scales'!A:K,11,FALSE),ROUND(G33*VLOOKUP(B33*1,'APU Scale'!A:B,2,FALSE)-G33,-2)) -> 0 | M33: =ROUND(H33*VLOOKUP(B33*1,'APU Scale'!A:B,2,FALSE),-2) -> 0 | N33: 0 | O33: 0 | P33: 6
A34: ORT001 | B34: 6 | K34: =IFERROR(VLOOKUP(P34,'FY23-FY24 Scales'!A:J,10,FALSE),G34) -> 0 | L34: =IFERROR(VLOOKUP(P34,'FY23-FY24 Scales'!A:K,11,FALSE),ROUND(G34*VLOOKUP(B34*1,'APU Scale'!A:B,2,FALSE)-G34,-2)) -> 0 | M34: =ROUND(H34*VLOOKUP(B34*1,'APU Scale'!A:B,2,FALSE),-2) -> 0 | N34: 0 | O34: 0 | P34: 6
A35: ORT001 | B35: 6 | K35: =IFERROR(VLOOKUP(P35,'FY23-FY24 Scales'!A:J,10,FALSE),G35) -> 0 | L35: =IFERROR(VLOOKUP(P35,'FY23-FY24 Scales'!A:K,11,FALSE),ROUND(G35*VLOOKUP(B35*1,'APU Scale'!A:B,2,FALSE)-G35,-2)) -> 0 | M35: =ROUND(H35*VLOOKUP(B35*1,'APU Scale'!A:B,2,FALSE),-2) -> 0 | N35: 0 | O35: 0 | P35: 6
A36: ORT001 | B36: 6 | K36: =IFERROR(VLOOKUP(P36,'FY23-FY24 Scales'!A:J,10,FALSE),G36) -> 0 | L36: =IFERROR(VLOOKUP(P36,'FY23-FY24 Scales'!A:K,11,FALSE),ROUND(G36*VLOOKUP(B36*1,'APU Scale'!A:B,2,FALSE)-G36,-2)) -> 0 | M36: =ROUND(H36*VLOOKUP(B36*1,'APU Scale'!A:B,2,FALSE),-2) -> 0 | N36: 0 | O36: 0 | P36: 6
A37: ORT001 | B37: 6 | K37: =IFERROR(VLOOKUP(P37,'FY23-FY24 Scales'!A:J,10,FALSE),G37) -> 0 | L37: =IFERROR(VLOOKUP(P37,'FY23-FY24 Scales'!A:K,11,FALSE),ROUND(G37*VLOOKUP(B37*1,'APU Scale'!A:B,2,FALSE)-G37,-2)) -> 0 | M37: =ROUND(H37*VLOOKUP(B37*1,'APU Scale'!A:B,2,FALSE),-2) -> 0 | N37: 0 | O37: 0 | P37: 6
A38: ORT001 | B38: 6 | K38: =IFERROR(VLOOKUP(P38,'FY23-FY24 Scales'!A:J,10,FALSE),G38) -> 0 | L38: =IFERROR(VLOOKUP(P38,'FY23-FY24 Scales'!A:K,11,FALSE),ROUND(G38*VLOOKUP(B38*1,'APU Scale'!A:B,2,FALSE)-G38,-2)) -> 0 | M38: =ROUND(H38*VLOOKUP(B38*1,'APU Scale'!A:B,2,FALSE),-2) -> 0 | N38: 0 | O38: 0 | P38: 6
A39: ORT001 | B39: 6 | K39: =IFERROR(VLOOKUP(P39,'FY23-FY24 Scales'!A:J,10,FALSE),G39) -> 0 | L39: =IFERROR(VLOOKUP(P39,'FY23-FY24 Scales'!A:K,11,FALSE),ROUND(G39*VLOOKUP(B39*1,'APU Scale'!A:B,2,FALSE)-G39,-2)) -> 0 | M39: =ROUND(H39*VLOOKUP(B39*1,'APU Scale'!A:B,2,FALSE),-2) -> 0 | N39: 0 | O39: 0 | P39: 6
A40: ORT001 | B40: 6 | K40: =IFERROR(VLOOKUP(P40,'FY23-FY24 Scales'!A:J,10,FALSE),G40) -> 0 | L40: =IFERROR(VLOOKUP(P40,'FY23-FY24 Scales'!A:K,11,FALSE),ROUND(G40*VLOOKUP(B40*1,'APU Scale'!A:B,2,FALSE)-G40,-2)) -> 0 | M40: =ROUND(H40*VLOOKUP(B40*1,'APU Scale'!A:B,2,FALSE),-2) -> 0 | N40: 0 | O40: 0 | P40: 6
A41: ORT001 | B41: 6 | K41: =IFERROR(VLOOKUP(P41,'FY23-FY24 Scales'!A:J,10,FALSE),G41) -> 0 | L41: =IFERROR(VLOOKUP(P41,'FY23-FY24 Scales'!A:K,11,FALSE),ROUND(G41*VLOOKUP(B41*1,'APU Scale'!A:B,2,FALSE)-G41,-2)) -> 0 | M41: =ROUND(H41*VLOOKUP(B41*1,'APU Scale'!A:B,2,FALSE),-2) -> 0 | N41: 0 | O41: 0 | P41: 6
A42: ORT001 | B42: 6 | K42: =IFERROR(VLOOKUP(P42,'FY23-FY24 Scales'!A:J,10,FALSE),G42) -> 0 | L42: =IFERROR(VLOOKUP(P42,'FY23-FY24 Scales'!A:K,11,FALSE),ROUND(G42*VLOOKUP(B42*1,'APU Scale'!A:B,2,FALSE)-G42,-2)) -> 0 | M42: =ROUND(H42*VLOOKUP(B42*1,'APU Scale'!A:B,2,FALSE),-2) -> 0 | N42: =K42+L42+M42 -> 0 | O42: =IF(I42-J42-N42<0,0,I42-J42-N42) -> 0 | P42: =CONCATENATE(E42,F42,B42) -> 6
A43: =A42 -> ORT001 | B43: =B42 -> 6 | K43: =IFERROR(VLOOKUP(P43,'FY23-FY24 Scales'!A:J,10,FALSE),G43) -> 0 | L43: =IFERROR(VLOOKUP(P43,'FY23-FY24 Scales'!A:K,11,FALSE),ROUND(G43*VLOOKUP(B43*1,'APU Scale'!A:B,2,FALSE)-G43,-2)) -> 0 | M43: =ROUND(H43*VLOOKUP(B43*1,'APU Scale'!A:B,2,FALSE),-2) -> 0 | N43: 0 | O43: 0 | P43: 6
A44: ORT001 | B44: 6 | K44: =IFERROR(VLOOKUP(P44,'FY23-FY24 Scales'!A:J,10,FALSE),G44) -> 0 | L44: =IFERROR(VLOOKUP(P44,'FY23-FY24 Scales'!A:K,11,FALSE),ROUND(G44*VLOOKUP(B44*1,'APU Scale'!A:B,2,FALSE)-G44,-2)) -> 0 | M44: =ROUND(H44*VLOOKUP(B44*1,'APU Scale'!A:B,2,FALSE),-2) -> 0 | N44: 0 | O44: 0 | P44: 6
A45: ORT001 | B45: 6 | K45: =IFERROR(VLOOKUP(P45,'FY23-FY24 Scales'!A:J,10,FALSE),G45) -> 0 | L45: =IFERROR(VLOOKUP(P45,'FY23-FY24 Scales'!A:K,11,FALSE),ROUND(G45*VLOOKUP(B45*1,'APU Scale'!A:B,2,FALSE)-G45,-2)) -> 0 | M45: =ROUND(H45*VLOOKUP(B45*1,'APU Scale'!A:B,2,FALSE),-2) -> 0 | N45: 0 | O45: 0 | P45: 6
A46: ORT001 | B46: 6 | K46: =IFERROR(VLOOKUP(P46,'FY23-FY24 Scales'!A:J,10,FALSE),G46) -> 0 | L46: =IFERROR(VLOOKUP(P46,'FY23-FY24 Scales'!A:K,11,FALSE),ROUND(G46*VLOOKUP(B46*1,'APU Scale'!A:B,2,FALSE)-G46,-2)) -> 0 | M46: =ROUND(H46*VLOOKUP(B46*1,'APU Scale'!A:B,2,FALSE),-2) -> 0 | N46: 0 | O46: 0 | P46: 6
A47: ORT001 | B47: 6 | K47: =IFERROR(VLOOKUP(P47,'FY23-FY24 Scales'!A:J,10,FALSE),G47) -> 0 | L47: =IFERROR(VLOOKUP(P47,'FY23-FY24 Scales'!A:K,11,FALSE),ROUND(G47*VLOOKUP(B47*1,'APU Scale'!A:B,2,FALSE)-G47,-2)) -> 0 | M47: =ROUND(H47*VLOOKUP(B47*1,'APU Scale'!A:B,2,FALSE),-2) -> 0 | N47: 0 | O47: 0 | P47: 6
A48: ORT001 | B48: 6 | K48: =IFERROR(VLOOKUP(P48,'FY23-FY24 Scales'!A:J,10,FALSE),G48) -> 0 | L48: =IFERROR(VLOOKUP(P48,'FY23-FY24 Scales'!A:K,11,FALSE),ROUND(G48*VLOOKUP(B48*1,'APU Scale'!A:B,2,FALSE)-G48,-2)) -> 0 | M48: =ROUND(H48*VLOOKUP(B48*1,'APU Scale'!A:B,2,FALSE),-2) -> 0 | N48: 0 | O48: 0 | P48: 6
A49: ORT001 | B49: 6 | K49: =IFERROR(VLOOKUP(P49,'FY23-FY24 Scales'!A:J,10,FALSE),G49) -> 0 | L49: =IFERROR(VLOOKUP(P49,'FY23-FY24 Scales'!A:K,11,FALSE),ROUND(G49*VLOOKUP(B49*1,'APU Scale'!A:B,2,FALSE)-G49,-2)) -> 0 | M49: =ROUND(H49*VLOOKUP(B49*1,'APU Scale'!A:B,2,FALSE),-2) -> 0 | N49: 0 | O49: 0 | P49: 6
A50: ORT001 | B50: 6 | K50: =IFERROR(VLOOKUP(P50,'FY23-FY24 Scales'!A:J,10,FALSE),G50) -> 0 | L50: =IFERROR(VLOOKUP(P50,'FY23-FY24 Scales'!A:K,11,FALSE),ROUND(G50*VLOOKUP(B50*1,'APU Scale'!A:B,2,FALSE)-G50,-2)) -> 0 | M50: =ROUND(H50*VLOOKUP(B50*1,'APU Scale'!A:B,2,FALSE),-2) -> 0 | N50: 0 | O50: 0 | P50: 6
A51: ORT001 | B51: 6 | K51: =IFERROR(VLOOKUP(P51,'FY23-FY24 Scales'!A:J,10,FALSE),G51) -> 0 | L51: =IFERROR(VLOOKUP(P51,'FY23-FY24 Scales'!A:K,11,FALSE),ROUND(G51*VLOOKUP(B51*1,'APU Scale'!A:B,2,FALSE)-G51,-2)) -> 0 | M51: =ROUND(H51*VLOOKUP(B51*1,'APU Scale'!A:B,2,FALSE),-2) -> 0 | N51: 0 | O51: 0 | P51: 6
A52: ORT001 | B52: 6 | K52: =IFERROR(VLOOKUP(P52,'FY23-FY24 Scales'!A:J,10,FALSE),G52) -> 0 | L52: =IFERROR(VLOOKUP(P52,'FY23-FY24 Scales'!A:K,11,FALSE),ROUND(G52*VLOOKUP(B52*1,'APU Scale'!A:B,2,FALSE)-G52,-2)) -> 0 | M52: =ROUND(H52*VLOOKUP(B52*1,'APU Scale'!A:B,2,FALSE),-2) -> 0 | N52: 0 | O52: 0 | P52: 6
A53: ORT001 | B53: 6 | K53: =IFERROR(VLOOKUP(P53,'FY23-FY24 Scales'!A:J,10,FALSE),G53) -> 0 | L53: =IFERROR(VLOOKUP(P53,'FY23-FY24 Scales'!A:K,11,FALSE),ROUND(G53*VLOOKUP(B53*1,'APU Scale'!A:B,2,FALSE)-G53,-2)) -> 0 | M53: =ROUND(H53*VLOOKUP(B53*1,'APU Scale'!A:B,2,FALSE),-2) -> 0 | N53: 0 | O53: 0 | P53: 6
A54: ORT001 | B54: 6 | K54: =IFERROR(VLOOKUP(P54,'FY23-FY24 Scales'!A:J,10,FALSE),G54) -> 0 | L54: =IFERROR(VLOOKUP(P54,'FY23-FY24 Scales'!A:K,11,FALSE),ROUND(G54*VLOOKUP(B54*1,'APU Scale'!A:B,2,FALSE)-G54,-2)) -> 0 | M54: =ROUND(H54*VLOOKUP(B54*1,'APU Scale'!A:B,2,FALSE),-2) -> 0 | N54: 0 | O54: 0 | P54: 6
A55: ORT001 | B55: 6 | K55: =IFERROR(VLOOKUP(P55,'FY23-FY24 Scales'!A:J,10,FALSE),G55) -> 0 | L55: =IFERROR(VLOOKUP(P55,'FY23-FY24 Scales'!A:K,11,FALSE),ROUND(G55*VLOOKUP(B55*1,'APU Scale'!A:B,2,FALSE)-G55,-2)) -> 0 | M55: =ROUND(H55*VLOOKUP(B55*1,'APU Scale'!A:B,2,FALSE),-2) -> 0 | N55: 0 | O55: 0 | P55: 6
A56: ORT001 | B56: 6 | K56: =IFERROR(VLOOKUP(P56,'FY23-FY24 Scales'!A:J,10,FALSE),G56) -> 0 | L56: =IFERROR(VLOOKUP(P56,'FY23-FY24 Scales'!A:K,11,FALSE),ROUND(G56*VLOOKUP(B56*1,'APU Scale'!A:B,2,FALSE)-G56,-2)) -> 0 | M56: =ROUND(H56*VLOOKUP(B56*1,'APU Scale'!A:B,2,FALSE),-2) -> 0 | N56: 0 | O56: 0 | P56: 6
A57: ORT001 | B57: 6 | K57: =IFERROR(VLOOKUP(P57,'FY23-FY24 Scales'!A:J,10,FALSE),G57) -> 0 | L57: =IFERROR(VLOOKUP(P57,'FY23-FY24 Scales'!A:K,11,FALSE),ROUND(G57*VLOOKUP(B57*1,'APU Scale'!A:B,2,FALSE)-G57,-2)) -> 0 | M57: =ROUND(H57*VLOOKUP(B57*1,'APU Scale'!A:B,2,FALSE),-2) -> 0 | N57: 0 | O57: 0 | P57: 6
A58: ORT001 | B58: 6 | K58: =IFERROR(VLOOKUP(P58,'FY23-FY24 Scales'!A:J,10,FALSE),G58) -> 0 | L58: =IFERROR(VLOOKUP(P58,'FY23-FY24 Scales'!A:K,11,FALSE),ROUND(G58*VLOOKUP(B58*1,'APU Scale'!A:B,2,FALSE)-G58,-2)) -> 0 | M58: =ROUND(H58*VLOOKUP(B58*1,'APU Scale'!A:B,2,FALSE),-2) -> 0 | N58: 0 | O58: 0 | P58: 6
A59: ORT001 | B59: 6 | K59: =IFERROR(VLOOKUP(P59,'FY23-FY24 Scales'!A:J,10,FALSE),G59) -> 0 | L59: =IFERROR(VLOOKUP(P59,'FY23-FY24 Scales'!A:K,11,FALSE),ROUND(G59*VLOOKUP(B59*1,'APU Scale'!A:B,2,FALSE)-G59,-2)) -> 0 | M59: =ROUND(H59*VLOOKUP(B59*1,'APU Scale'!A:B,2,FALSE),-2) -> 0 | N59: 0 | O59: 0 | P59: 6
A60: ORT001 | B60: 6 | K60: =IFERROR(VLOOKUP(P60,'FY23-FY24 Scales'!A:J,10,FALSE),G60) -> 0 | L60: =IFERROR(VLOOKUP(P60,'FY23-FY24 Scales'!A:K,11,FALSE),ROUND(G60*VLOOKUP(B60*1,'APU Scale'!A:B,2,FALSE)-G60,-2)) -> 0 | M60: =ROUND(H60*VLOOKUP(B60*1,'APU Scale'!A:B,2,FALSE),-2) -> 0 | N60: 0 | O60: 0 | P60: 6
A61: ORT001 | B61: 6 | K61: =IFERROR(VLOOKUP(P61,'FY23-FY24 Scales'!A:J,10,FALSE),G61) -> 0 | L61: =IFERROR(VLOOKUP(P61,'FY23-FY24 Scales'!A:K,11,FALSE),ROUND(G61*VLOOKUP(B61*1,'APU Scale'!A:B,2,FALSE)-G61,-2)) -> 0 | M61: =ROUND(H61*VLOOKUP(B61*1,'APU Scale'!A:B,2,FALSE),-2) -> 0 | N61: 0 | O61: 0 | P61: 6
A62: ORT001 | B62: 6 | K62: =IFERROR(VLOOKUP(P62,'FY23-FY24 Scales'!A:J,10,FALSE),G62) -> 0 | L62: =IFERROR(VLOOKUP(P62,'FY23-FY24 Scales'!A:K,11,FALSE),ROUND(G62*VLOOKUP(B62*1,'APU Scale'!A:B,2,FALSE)-G62,-2)) -> 0 | M62: =ROUND(H62*VLOOKUP(B62*1,'APU Scale'!A:B,2,FALSE),-2) -> 0 | N62: 0 | O62: 0 | P62: 6
A63: ORT001 | B63: 6 | K63: =IFERROR(VLOOKUP(P63,'FY23-FY24 Scales'!A:J,10,FALSE),G63) -> 0 | L63: =IFERROR(VLOOKUP(P63,'FY23-FY24 Scales'!A:K,11,FALSE),ROUND(G63*VLOOKUP(B63*1,'APU Scale'!A:B,2,FALSE)-G63,-2)) -> 0 | M63: =ROUND(H63*VLOOKUP(B63*1,'APU Scale'!A:B,2,FALSE),-2) -> 0 | N63: 0 | O63: 0 | P63: 6
A64: ORT001 | B64: 6 | K64: =IFERROR(VLOOKUP(P64,'FY23-FY24 Scales'!A:J,10,FALSE),G64) -> 0 | L64: =IFERROR(VLOOKUP(P64,'FY23-FY24 Scales'!A:K,11,FALSE),ROUND(G64*VLOOKUP(B64*1,'APU Scale'!A:B,2,FALSE)-G64,-2)) -> 0 | M64: =ROUND(H64*VLOOKUP(B64*1,'APU Scale'!A:B,2,FALSE),-2) -> 0 | N64: 0 | O64: 0 | P64: 6
A65: ORT001 | B65: 6 | K65: =IFERROR(VLOOKUP(P65,'FY23-FY24 Scales'!A:J,10,FALSE),G65) -> 0 | L65: =IFERROR(VLOOKUP(P65,'FY23-FY24 Scales'!A:K,11,FALSE),ROUND(G65*VLOOKUP(B65*1,'APU Scale'!A:B,2,FALSE)-G65,-2)) -> 0 | M65: =ROUND(H65*VLOOKUP(B65*1,'APU Scale'!A:B,2,FALSE),-2) -> 0 | N65: 0 | O65: 0 | P65: 6
A66: ORT001 | B66: 6 | K66: =IFERROR(VLOOKUP(P66,'FY23-FY24 Scales'!A:J,10,FALSE),G66) -> 0 | L66: =IFERROR(VLOOKUP(P66,'FY23-FY24 Scales'!A:K,11,FALSE),ROUND(G66*VLOOKUP(B66*1,'APU Scale'!A:B,2,FALSE)-G66,-2)) -> 0 | M66: =ROUND(H66*VLOOKUP(B66*1,'APU Scale'!A:B,2,FALSE),-2) -> 0 | N66: 0 | O66: 0 | P66: 6
A67: ORT001 | B67: 6 | K67: =IFERROR(VLOOKUP(P67,'FY23-FY24 Scales'!A:J,10,FALSE),G67) -> 0 | L67: =IFERROR(VLOOKUP(P67,'FY23-FY24 Scales'!A:K,11,FALSE),ROUND(G67*VLOOKUP(B67*1,'APU Scale'!A:B,2,FALSE)-G67,-2)) -> 0 | M67: =ROUND(H67*VLOOKUP(B67*1,'APU Scale'!A:B,2,FALSE),-2) -> 0 | N67: 0 | O67: 0 | P67: 6
A68: ORT001 | B68: 6 | K68: =IFERROR(VLOOKUP(P68,'FY23-FY24 Scales'!A:J,10,FALSE),G68) -> 0 | L68: =IFERROR(VLOOKUP(P68,'FY23-FY24 Scales'!A:K,11,FALSE),ROUND(G68*VLOOKUP(B68*1,'APU Scale'!A:B,2,FALSE)-G68,-2)) -> 0 | M68: =ROUND(H68*VLOOKUP(B68*1,'APU Scale'!A:B,2,FALSE),-2) -> 0 | N68: 0 | O68: 0 | P68: 6
A69: ORT001 | B69: 6 | K69: =IFERROR(VLOOKUP(P69,'FY23-FY24 Scales'!A:J,10,FALSE),G69) -> 0 | L69: =IFERROR(VLOOKUP(P69,'FY23-FY24 Scales'!A:K,11,FALSE),ROUND(G69*VLOOKUP(B69*1,'APU Scale'!A:B,2,FALSE)-G69,-2)) -> 0 | M69: =ROUND(H69*VLOOKUP(B69*1,'APU Scale'!A:B,2,FALSE),-2) -> 0 | N69: 0 | O69: 0 | P69: 6
A70: ORT001 | B70: 6 | K70: =IFERROR(VLOOKUP(P70,'FY23-FY24 Scales'!A:J,10,FALSE),G70) -> 0 | L70: =IFERROR(VLOOKUP(P70,'FY23-FY24 Scales'!A:K,11,FALSE),ROUND(G70*VLOOKUP(B70*1,'APU Scale'!A:B,2,FALSE)-G70,-2)) -> 0 | M70: =ROUND(H70*VLOOKUP(B70*1,'APU Scale'!A:B,2,FALSE),-2) -> 0 | N70: 0 | O70: 0 | P70: 6
A71: ORT001 | B71: 6 | K71: =IFERROR(VLOOKUP(P71,'FY23-FY24 Scales'!A:J,10,FALSE),G71) -> 0 | L71: =IFERROR(VLOOKUP(P71,'FY23-FY24 Scales'!A:K,11,FALSE),ROUND(G71*VLOOKUP(B71*1,'APU Scale'!A:B,2,FALSE)-G71,-2)) -> 0 | M71: =ROUND(H71*VLOOKUP(B71*1,'APU Scale'!A:B,2,FALSE),-2) -> 0 | N71: 0 | O71: 0 | P71: 6
A72: ORT001 | B72: 6 | K72: =IFERROR(VLOOKUP(P72,'FY23-FY24 Scales'!A:J,10,FALSE),G72) -> 0 | L72: =IFERROR(VLOOKUP(P72,'FY23-FY24 Scales'!A:K,11,FALSE),ROUND(G72*VLOOKUP(B72*1,'APU Scale'!A:B,2,FALSE)-G72,-2)) -> 0 | M72: =ROUND(H72*VLOOKUP(B72*1,'APU Scale'!A:B,2,FALSE),-2) -> 0 | N72: 0 | O72: 0 | P72: 6
A73: ORT001 | B73: 6 | K73: =IFERROR(VLOOKUP(P73,'FY23-FY24 Scales'!A:J,10,FALSE),G73) -> 0 | L73: =IFERROR(VLOOKUP(P73,'FY23-FY24 Scales'!A:K,11,FALSE),ROUND(G73*VLOOKUP(B73*1,'APU Scale'!A:B,2,FALSE)-G73,-2)) -> 0 | M73: =ROUND(H73*VLOOKUP(B73*1,'APU Scale'!A:B,2,FALSE),-2) -> 0 | N73: 0 | O73: 0 | P73: 6
A74: ORT001 | B74: 6 | K74: =IFERROR(VLOOKUP(P74,'FY23-FY24 Scales'!A:J,10,FALSE),G74) -> 0 | L74: =IFERROR(VLOOKUP(P74,'FY23-FY24 Scales'!A:K,11,FALSE),ROUND(G74*VLOOKUP(B74*1,'APU Scale'!A:B,2,FALSE)-G74,-2)) -> 0 | M74: =ROUND(H74*VLOOKUP(B74*1,'APU Scale'!A:B,2,FALSE),-2) -> 0 | N74: =K74+L74+M74 -> 0 | O74: =IF(I74-J74-N74<0,0,I74-J74-N74) -> 0 | P74: =CONCATENATE(E74,F74,B74) -> 6
A75: =A74 -> ORT001 | B75: =B74 -> 6 | K75: =IFERROR(VLOOKUP(P75,'FY23-FY24 Scales'!A:J,10,FALSE),G75) -> 0 | L75: =IFERROR(VLOOKUP(P75,'FY23-FY24 Scales'!A:K,11,FALSE),ROUND(G75*VLOOKUP(B75*1,'APU Scale'!A:B,2,FALSE)-G75,-2)) -> 0 | M75: =ROUND(H75*VLOOKUP(B75*1,'APU Scale'!A:B,2,FALSE),-2) -> 0 | N75: 0 | O75: 0 | P75: 6
A76: ORT001 | B76: 6 | K76: =IFERROR(VLOOKUP(P76,'FY23-FY24 Scales'!A:J,10,FALSE),G76) -> 0 | L76: =IFERROR(VLOOKUP(P76,'FY23-FY24 Scales'!A:K,11,FALSE),ROUND(G76*VLOOKUP(B76*1,'APU Scale'!A:B,2,FALSE)-G76,-2)) -> 0 | M76: =ROUND(H76*VLOOKUP(B76*1,'APU Scale'!A:B,2,FALSE),-2) -> 0 | N76: 0 | O76: 0 | P76: 6
A77: ORT001 | B77: 6 | K77: =IFERROR(VLOOKUP(P77,'FY23-FY24 Scales'!A:J,10,FALSE),G77) -> 0 | L77: =IFERROR(VLOOKUP(P77,'FY23-FY24 Scales'!A:K,11,FALSE),ROUND(G77*VLOOKUP(B77*1,'APU Scale'!A:B,2,FALSE)-G77,-2)) -> 0 | M77: =ROUND(H77*VLOOKUP(B77*1,'APU Scale'!A:B,2,FALSE),-2) -> 0 | N77: 0 | O77: 0 | P77: 6
A78: ORT001 | B78: 6 | K78: =IFERROR(VLOOKUP(P78,'FY23-FY24 Scales'!A:J,10,FALSE),G78) -> 0 | L78: =IFERROR(VLOOKUP(P78,'FY23-FY24 Scales'!A:K,11,FALSE),ROUND(G78*VLOOKUP(B78*1,'APU Scale'!A:B,2,FALSE)-G78,-2)) -> 0 | M78: =ROUND(H78*VLOOKUP(B78*1,'APU Scale'!A:B,2,FALSE),-2) -> 0 | N78: 0 | O78: 0 | P78: 6
A79: ORT001 | B79: 6 | K79: =IFERROR(VLOOKUP(P79,'FY23-FY24 Scales'!A:J,10,FALSE),G79) -> 0 | L79: =IFERROR(VLOOKUP(P79,'FY23-FY24 Scales'!A:K,11,FALSE),ROUND(G79*VLOOKUP(B79*1,'APU Scale'!A:B,2,FALSE)-G79,-2)) -> 0 | M79: =ROUND(H79*VLOOKUP(B79*1,'APU Scale'!A:B,2,FALSE),-2) -> 0 | N79: 0 | O79: 0 | P79: 6
A80: ORT001 | B80: 6 | K80: =IFERROR(VLOOKUP(P80,'FY23-FY24 Scales'!A:J,10,FALSE),G80) -> 0 | L80: =IFERROR(VLOOKUP(P80,'FY23-FY24 Scales'!A:K,11,FALSE),ROUND(G80*VLOOKUP(B80*1,'APU Scale'!A:B,2,FALSE)-G80,-2)) -> 0 | M80: =ROUND(H80*VLOOKUP(B80*1,'APU Scale'!A:B,2,FALSE),-2) -> 0 | N80: 0 | O80: 0 | P80: 6
A81: ORT001 | B81: 6 | K81: =IFERROR(VLOOKUP(P81,'FY23-FY24 Scales'!A:J,10,FALSE),G81) -> 0 | L81: =IFERROR(VLOOKUP(P81,'FY23-FY24 Scales'!A:K,11,FALSE),ROUND(G81*VLOOKUP(B81*1,'APU Scale'!A:B,2,FALSE)-G81,-2)) -> 0 | M81: =ROUND(H81*VLOOKUP(B81*1,'APU Scale'!A:B,2,FALSE),-2) -> 0 | N81: 0 | O81: 0 | P81: 6
A82: ORT001 | B82: 6 | K82: =IFERROR(VLOOKUP(P82,'FY23-FY24 Scales'!A:J,10,FALSE),G82) -> 0 | L82: =IFERROR(VLOOKUP(P82,'FY23-FY24 Scales'!A:K,11,FALSE),ROUND(G82*VLOOKUP(B82*1,'APU Scale'!A:B,2,FALSE)-G82,-2)) -> 0 | M82: =ROUND(H82*VLOOKUP(B82*1,'APU Scale'!A:B,2,FALSE),-2) -> 0 | N82: 0 | O82: 0 | P82: 6
A83: ORT001 | B83: 6 | K83: =IFERROR(VLOOKUP(P83,'FY23-FY24 Scales'!A:J,10,FALSE),G83) -> 0 | L83: =IFERROR(VLOOKUP(P83,'FY23-FY24 Scales'!A:K,11,FALSE),ROUND(G83*VLOOKUP(B83*1,'APU Scale'!A:B,2,FALSE)-G83,-2)) -> 0 | M83: =ROUND(H83*VLOOKUP(B83*1,'APU Scale'!A:B,2,FALSE),-2) -> 0 | N83: 0 | O83: 0 | P83: 6
A84: ORT001 | B84: 6 | K84: =IFERROR(VLOOKUP(P84,'FY23-FY24 Scales'!A:J,10,FALSE),G84) -> 0 | L84: =IFERROR(VLOOKUP(P84,'FY23-FY24 Scales'!A:K,11,FALSE),ROUND(G84*VLOOKUP(B84*1,'APU Scale'!A:B,2,FALSE)-G84,-2)) -> 0 | M84: =ROUND(H84*VLOOKUP(B84*1,'APU Scale'!A:B,2,FALSE),-2) -> 0 | N84: 0 | O84: 0 | P84: 6
A85: ORT001 | B85: 6 | K85: =IFERROR(VLOOKUP(P85,'FY23-FY24 Scales'!A:J,10,FALSE),G85) -> 0 | L85: =IFERROR(VLOOKUP(P85,'FY23-FY24 Scales'!A:K,11,FALSE),ROUND(G85*VLOOKUP(B85*1,'APU Scale'!A:B,2,FALSE)-G85,-2)) -> 0 | M85: =ROUND(H85*VLOOKUP(B85*1,'APU Scale'!A:B,2,FALSE),-2) -> 0 | N85: 0 | O85: 0 | P85: 6
A86: ORT001 | B86: 6 | K86: =IFERROR(VLOOKUP(P86,'FY23-FY24 Scales'!A:J,10,FALSE),G86) -> 0 | L86: =IFERROR(VLOOKUP(P86,'FY23-FY24 Scales'!A:K,11,FALSE),ROUND(G86*VLOOKUP(B86*1,'APU Scale'!A:B,2,FALSE)-G86,-2)) -> 0 | M86: =ROUND(H86*VLOOKUP(B86*1,'APU Scale'!A:B,2,FALSE),-2) -> 0 | N86: 0 | O86: 0 | P86: 6
A87: ORT001 | B87: 6 | K87: =IFERROR(VLOOKUP(P87,'FY23-FY24 Scales'!A:J,10,FALSE),G87) -> 0 | L87: =IFERROR(VLOOKUP(P87,'FY23-FY24 Scales'!A:K,11,FALSE),ROUND(G87*VLOOKUP(B87*1,'APU Scale'!A:B,2,FALSE)-G87,-2)) -> 0 | M87: =ROUND(H87*VLOOKUP(B87*1,'APU Scale'!A:B,2,FALSE),-2) -> 0 | N87: 0 | O87: 0 | P87: 6
A88: ORT001 | B88: 6 | K88: =IFERROR(VLOOKUP(P88,'FY23-FY24 Scales'!A:J,10,FALSE),G88) -> 0 | L88: =IFERROR(VLOOKUP(P88,'FY23-FY24 Scales'!A:K,11,FALSE),ROUND(G88*VLOOKUP(B88*1,'APU Scale'!A:B,2,FALSE)-G88,-2)) -> 0 | M88: =ROUND(H88*VLOOKUP(B88*1,'APU Scale'!A:B,2,FALSE),-2) -> 0 | N88: 0 | O88: 0 | P88: 6
A89: ORT001 | B89: 6 | K89: =IFERROR(VLOOKUP(P89,'FY23-FY24 Scales'!A:J,10,FALSE),G89) -> 0 | L89: =IFERROR(VLOOKUP(P89,'FY23-FY24 Scales'!A:K,11,FALSE),ROUND(G89*VLOOKUP(B89*1,'APU Scale'!A:B,2,FALSE)-G89,-2)) -> 0 | M89: =ROUND(H89*VLOOKUP(B89*1,'APU Scale'!A:B,2,FALSE),-2) -> 0 | N89: 0 | O89: 0 | P89: 6
A90: ORT001 | B90: 6 | K90: =IFERROR(VLOOKUP(P90,'FY23-FY24 Scales'!A:J,10,FALSE),G90) -> 0 | L90: =IFERROR(VLOOKUP(P90,'FY23-FY24 Scales'!A:K,11,FALSE),ROUND(G90*VLOOKUP(B90*1,'APU Scale'!A:B,2,FALSE)-G90,-2)) -> 0 | M90: =ROUND(H90*VLOOKUP(B90*1,'APU Scale'!A:B,2,FALSE),-2) -> 0 | N90: 0 | O90: 0 | P90: 6
A91: ORT001 | B91: 6 | K91: =IFERROR(VLOOKUP(P91,'FY23-FY24 Scales'!A:J,10,FALSE),G91) -> 0 | L91: =IFERROR(VLOOKUP(P91,'FY23-FY24 Scales'!A:K,11,FALSE),ROUND(G91*VLOOKUP(B91*1,'APU Scale'!A:B,2,FALSE)-G91,-2)) -> 0 | M91: =ROUND(H91*VLOOKUP(B91*1,'APU Scale'!A:B,2,FALSE),-2) -> 0 | N91: 0 | O91: 0 | P91: 6
A92: ORT001 | B92: 6 | K92: =IFERROR(VLOOKUP(P92,'FY23-FY24 Scales'!A:J,10,FALSE),G92) -> 0 | L92: =IFERROR(VLOOKUP(P92,'FY23-FY24 Scales'!A:K,11,FALSE),ROUND(G92*VLOOKUP(B92*1,'APU Scale'!A:B,2,FALSE)-G92,-2)) -> 0 | M92: =ROUND(H92*VLOOKUP(B92*1,'APU Scale'!A:B,2,FALSE),-2) -> 0 | N92: 0 | O92: 0 | P92: 6
A93: ORT001 | B93: 6 | K93: =IFERROR(VLOOKUP(P93,'FY23-FY24 Scales'!A:J,10,FALSE),G93) -> 0 | L93: =IFERROR(VLOOKUP(P93,'FY23-FY24 Scales'!A:K,11,FALSE),ROUND(G93*VLOOKUP(B93*1,'APU Scale'!A:B,2,FALSE)-G93,-2)) -> 0 | M93: =ROUND(H93*VLOOKUP(B93*1,'APU Scale'!A:B,2,FALSE),-2) -> 0 | N93: 0 | O93: 0 | P93: 6
A94: ORT001 | B94: 6 | K94: =IFERROR(VLOOKUP(P94,'FY23-FY24 Scales'!A:J,10,FALSE),G94) -> 0 | L94: =IFERROR(VLOOKUP(P94,'FY23-FY24 Scales'!A:K,11,FALSE),ROUND(G94*VLOOKUP(B94*1,'APU Scale'!A:B,2,FALSE)-G94,-2)) -> 0 | M94: =ROUND(H94*VLOOKUP(B94*1,'APU Scale'!A:B,2,FALSE),-2) -> 0 | N94: 0 | O94: 0 | P94: 6
A95: ORT001 | B95: 6 | K95: =IFERROR(VLOOKUP(P95,'FY23-FY24 Scales'!A:J,10,FALSE),G95) -> 0 | L95: =IFERROR(VLOOKUP(P95,'FY23-FY24 Scales'!A:K,11,FALSE),ROUND(G95*VLOOKUP(B95*1,'APU Scale'!A:B,2,FALSE)-G95,-2)) -> 0 | M95: =ROUND(H95*VLOOKUP(B95*1,'APU Scale'!A:B,2,FALSE),-2) -> 0 | N95: 0 | O95: 0 | P95: 6
A96: ORT001 | B96: 6 | K96: =IFERROR(VLOOKUP(P96,'FY23-FY24 Scales'!A:J,10,FALSE),G96) -> 0 | L96: =IFERROR(VLOOKUP(P96,'FY23-FY24 Scales'!A:K,11,FALSE),ROUND(G96*VLOOKUP(B96*1,'APU Scale'!A:B,2,FALSE)-G96,-2)) -> 0 | M96: =ROUND(H96*VLOOKUP(B96*1,'APU Scale'!A:B,2,FALSE),-2) -> 0 | N96: 0 | O96: 0 | P96: 6
A97: ORT001 | B97: 6 | K97: =IFERROR(VLOOKUP(P97,'FY23-FY24 Scales'!A:J,10,FALSE),G97) -> 0 | L97: =IFERROR(VLOOKUP(P97,'FY23-FY24 Scales'!A:K,11,FALSE),ROUND(G97*VLOOKUP(B97*1,'APU Scale'!A:B,2,FALSE)-G97,-2)) -> 0 | M97: =ROUND(H97*VLOOKUP(B97*1,'APU Scale'!A:B,2,FALSE),-2) -> 0 | N97: 0 | O97: 0 | P97: 6
A98: ORT001 | B98: 6 | K98: =IFERROR(VLOOKUP(P98,'FY23-FY24 Scales'!A:J,10,FALSE),G98) -> 0 | L98: =IFERROR(VLOOKUP(P98,'FY23-FY24 Scales'!A:K,11,FALSE),ROUND(G98*VLOOKUP(B98*1,'APU Scale'!A:B,2,FALSE)-G98,-2)) -> 0 | M98: =ROUND(H98*VLOOKUP(B98*1,'APU Scale'!A:B,2,FALSE),-2) -> 0 | N98: 0 | O98: 0 | P98: 6
A99: ORT001 | B99: 6 | K99: =IFERROR(VLOOKUP(P99,'FY23-FY24 Scales'!A:J,10,FALSE),G99) -> 0 | L99: =IFERROR(VLOOKUP(P99,'FY23-FY24 Scales'!A:K,11,FALSE),ROUND(G99*VLOOKUP(B99*1,'APU Scale'!A:B,2,FALSE)-G99,-2)) -> 0 | M99: =ROUND(H99*VLOOKUP(B99*1,'APU Scale'!A:B,2,FALSE),-2) -> 0 | N99: 0 | O99: 0 | P99: 6
A100: ORT001 | B100: 6 | K100: =IFERROR(VLOOKUP(P100,'FY23-FY24 Scales'!A:J,10,FALSE),G100) -> 0 | L100: =IFERROR(VLOOKUP(P100,'FY23-FY24 Scales'!A:K,11,FALSE),ROUND(G100*VLOOKUP(B100*1,'APU Scale'!A:B,2,FALSE)-G100,-2)) -> 0 | M100: =ROUND(H100*VLOOKUP(B100*1,'APU Scale'!A:B,2,FALSE),-2) -> 0 | N100: 0 | O100: 0 | P100: 6
A101: ORT001 | B101: 6 | K101: =IFERROR(VLOOKUP(P101,'FY23-FY24 Scales'!A:J,10,FALSE),G101) -> 0 | L101: =IFERROR(VLOOKUP(P101,'FY23-FY24 Scales'!A:K,11,FALSE),ROUND(G101*VLOOKUP(B101*1,'APU Scale'!A:B,2,FALSE)-G101,-2)) -> 0 | M101: =ROUND(H101*VLOOKUP(B101*1,'APU Scale'!A:B,2,FALSE),-2) -> 0 | N101: 0 | O101: 0 | P101: 6
A102: ORT001 | B102: 6 | K102: =IFERROR(VLOOKUP(P102,'FY23-FY24 Scales'!A:J,10,FALSE),G102) -> 0 | L102: =IFERROR(VLOOKUP(P102,'FY23-FY24 Scales'!A:K,11,FALSE),ROUND(G102*VLOOKUP(B102*1,'APU Scale'!A:B,2,FALSE)-G102,-2)) -> 0 | M102: =ROUND(H102*VLOOKUP(B102*1,'APU Scale'!A:B,2,FALSE),-2) -> 0 | N102: 0 | O102: 0 | P102: 6
A103: ORT001 | B103: 6 | K103: =IFERROR(VLOOKUP(P103,'FY23-FY24 Scales'!A:J,10,FALSE),G103) -> 0 | L103: =IFERROR(VLOOKUP(P103,'FY23-FY24 Scales'!A:K,11,FALSE),ROUND(G103*VLOOKUP(B103*1,'APU Scale'!A:B,2,FALSE)-G103,-2)) -> 0 | M103: =ROUND(H103*VLOOKUP(B103*1,'APU Scale'!A:B,2,FALSE),-2) -> 0 | N103: 0 | O103: 0 | P103: 6
A104: ORT001 | B104: 6 | K104: =IFERROR(VLOOKUP(P104,'FY23-FY24 Scales'!A:J,10,FALSE),G104) -> 0 | L104: =IFERROR(VLOOKUP(P104,'FY23-FY24 Scales'!A:K,11,FALSE),ROUND(G104*VLOOKUP(B104*1,'APU Scale'!A:B,2,FALSE)-G104,-2)) -> 0 | M104: =ROUND(H104*VLOOKUP(B104*1,'APU Scale'!A:B,2,FALSE),-2) -> 0 | N104: 0 | O104: 0 | P104: 6
A105: ORT001 | B105: 6 | K105: =IFERROR(VLOOKUP(P105,'FY23-FY24 Scales'!A:J,10,FALSE),G105) -> 0 | L105: =IFERROR(VLOOKUP(P105,'FY23-FY24 Scales'!A:K,11,FALSE),ROUND(G105*VLOOKUP(B105*1,'APU Scale'!A:B,2,FALSE)-G105,-2)) -> 0 | M105: =ROUND(H105*VLOOKUP(B105*1,'APU Scale'!A:B,2,FALSE),-2) -> 0 | N105: 0 | O105: 0 | P105: 6
A106: ORT001 | B106: 6 | K106: =IFERROR(VLOOKUP(P106,'FY23-FY24 Scales'!A:J,10,FALSE),G106) -> 0 | L106: =IFERROR(VLOOKUP(P106,'FY23-FY24 Scales'!A:K,11,FALSE),ROUND(G106*VLOOKUP(B106*1,'APU Scale'!A:B,2,FALSE)-G106,-2)) -> 0 | M106: =ROUND(H106*VLOOKUP(B106*1,'APU Scale'!A:B,2,FALSE),-2) -> 0 | N106: =K106+L106+M106 -> 0 | O106: =IF(I106-J106-N106<0,0,I106-J106-N106) -> 0 | P106: =CONCATENATE(E106,F106,B106) -> 6
A107: =A106 -> ORT001 | B107: =B106 -> 6 | K107: =IFERROR(VLOOKUP(P107,'FY23-FY24 Scales'!A:J,10,FALSE),G107) -> 0 | L107: =IFERROR(VLOOKUP(P107,'FY23-FY24 Scales'!A:K,11,FALSE),ROUND(G107*VLOOKUP(B107*1,'APU Scale'!A:B,2,FALSE)-G107,-2)) -> 0 | M107: =ROUND(H107*VLOOKUP(B107*1,'APU Scale'!A:B,2,FALSE),-2) -> 0 | N107: 0 | O107: 0 | P107: 6
A108: ORT001 | B108: 6 | K108: =IFERROR(VLOOKUP(P108,'FY23-FY24 Scales'!A:J,10,FALSE),G108) -> 0 | L108: =IFERROR(VLOOKUP(P108,'FY23-FY24 Scales'!A:K,11,FALSE),ROUND(G108*VLOOKUP(B108*1,'APU Scale'!A:B,2,FALSE)-G108,-2)) -> 0 | M108: =ROUND(H108*VLOOKUP(B108*1,'APU Scale'!A:B,2,FALSE),-2) -> 0 | N108: 0 | O108: 0 | P108: 6
A109: ORT001 | B109: 6 | K109: =IFERROR(VLOOKUP(P109,'FY23-FY24 Scales'!A:J,10,FALSE),G109) -> 0 | L109: =IFERROR(VLOOKUP(P109,'FY23-FY24 Scales'!A:K,11,FALSE),ROUND(G109*VLOOKUP(B109*1,'APU Scale'!A:B,2,FALSE)-G109,-2)) -> 0 | M109: =ROUND(H109*VLOOKUP(B109*1,'APU Scale'!A:B,2,FALSE),-2) -> 0 | N109: 0 | O109: 0 | P109: 6
A110: ORT001 | B110: 6 | K110: =IFERROR(VLOOKUP(P110,'FY23-FY24 Scales'!A:J,10,FALSE),G110) -> 0 | L110: =IFERROR(VLOOKUP(P110,'FY23-FY24 Scales'!A:K,11,FALSE),ROUND(G110*VLOOKUP(B110*1,'APU Scale'!A:B,2,FALSE)-G110,-2)) -> 0 | M110: =ROUND(H110*VLOOKUP(B110*1,'APU Scale'!A:B,2,FALSE),-2) -> 0 | N110: 0 | O110: 0 | P110: 6
A111: ORT001 | B111: 6 | K111: =IFERROR(VLOOKUP(P111,'FY23-FY24 Scales'!A:J,10,FALSE),G111) -> 0 | L111: =IFERROR(VLOOKUP(P111,'FY23-FY24 Scales'!A:K,11,FALSE),ROUND(G111*VLOOKUP(B111*1,'APU Scale'!A:B,2,FALSE)-G111,-2)) -> 0 | M111: =ROUND(H111*VLOOKUP(B111*1,'APU Scale'!A:B,2,FALSE),-2) -> 0 | N111: 0 | O111: 0 | P111: 6
A112: ORT001 | B112: 6 | K112: =IFERROR(VLOOKUP(P112,'FY23-FY24 Scales'!A:J,10,FALSE),G112) -> 0 | L112: =IFERROR(VLOOKUP(P112,'FY23-FY24 Scales'!A:K,11,FALSE),ROUND(G112*VLOOKUP(B112*1,'APU Scale'!A:B,2,FALSE)-G112,-2)) -> 0 | M112: =ROUND(H112*VLOOKUP(B112*1,'APU Scale'!A:B,2,FALSE),-2) -> 0 | N112: 0 | O112: 0 | P112: 6
A113: ORT001 | B113: 6 | K113: =IFERROR(VLOOKUP(P113,'FY23-FY24 Scales'!A:J,10,FALSE),G113) -> 0 | L113: =IFERROR(VLOOKUP(P113,'FY23-FY24 Scales'!A:K,11,FALSE),ROUND(G113*VLOOKUP(B113*1,'APU Scale'!A:B,2,FALSE)-G113,-2)) -> 0 | M113: =ROUND(H113*VLOOKUP(B113*1,'APU Scale'!A:B,2,FALSE),-2) -> 0 | N113: 0 | O113: 0 | P113: 6
A114: ORT001 | B114: 6 | K114: =IFERROR(VLOOKUP(P114,'FY23-FY24 Scales'!A:J,10,FALSE),G114) -> 0 | L114: =IFERROR(VLOOKUP(P114,'FY23-FY24 Scales'!A:K,11,FALSE),ROUND(G114*VLOOKUP(B114*1,'APU Scale'!A:B,2,FALSE)-G114,-2)) -> 0 | M114: =ROUND(H114*VLOOKUP(B114*1,'APU Scale'!A:B,2,FALSE),-2) -> 0 | N114: 0 | O114: 0 | P114: 6
A115: ORT001 | B115: 6 | K115: =IFERROR(VLOOKUP(P115,'FY23-FY24 Scales'!A:J,10,FALSE),G115) -> 0 | L115: =IFERROR(VLOOKUP(P115,'FY23-FY24 Scales'!A:K,11,FALSE),ROUND(G115*VLOOKUP(B115*1,'APU Scale'!A:B,2,FALSE)-G115,-2)) -> 0 | M115: =ROUND(H115*VLOOKUP(B115*1,'APU Scale'!A:B,2,FALSE),-2) -> 0 | N115: 0 | O115: 0 | P115: 6
A116: ORT001 | B116: 6 | K116: =IFERROR(VLOOKUP(P116,'FY23-FY24 Scales'!A:J,10,FALSE),G116) -> 0 | L116: =IFERROR(VLOOKUP(P116,'FY23-FY24 Scales'!A:K,11,FALSE),ROUND(G116*VLOOKUP(B116*1,'APU Scale'!A:B,2,FALSE)-G116,-2)) -> 0 | M116: =ROUND(H116*VLOOKUP(B116*1,'APU Scale'!A:B,2,FALSE),-2) -> 0 | N116: 0 | O116: 0 | P116: 6
A117: ORT001 | B117: 6 | K117: =IFERROR(VLOOKUP(P117,'FY23-FY24 Scales'!A:J,10,FALSE),G117) -> 0 | L117: =IFERROR(VLOOKUP(P117,'FY23-FY24 Scales'!A:K,11,FALSE),ROUND(G117*VLOOKUP(B117*1,'APU Scale'!A:B,2,FALSE)-G117,-2)) -> 0 | M117: =ROUND(H117*VLOOKUP(B117*1,'APU Scale'!A:B,2,FALSE),-2) -> 0 | N117: 0 | O117: 0 | P117: 6
A118: ORT001 | B118: 6 | K118: =IFERROR(VLOOKUP(P118,'FY23-FY24 Scales'!A:J,10,FALSE),G118) -> 0 | L118: =IFERROR(VLOOKUP(P118,'FY23-FY24 Scales'!A:K,11,FALSE),ROUND(G118*VLOOKUP(B118*1,'APU Scale'!A:B,2,FALSE)-G118,-2)) -> 0 | M118: =ROUND(H118*VLOOKUP(B118*1,'APU Scale'!A:B,2,FALSE),-2) -> 0 | N118: 0 | O118: 0 | P118: 6
A119: ORT001 | B119: 6 | K119: =IFERROR(VLOOKUP(P119,'FY23-FY24 Scales'!A:J,10,FALSE),G119) -> 0 | L119: =IFERROR(VLOOKUP(P119,'FY23-FY24 Scales'!A:K,11,FALSE),ROUND(G119*VLOOKUP(B119*1,'APU Scale'!A:B,2,FALSE)-G119,-2)) -> 0 | M119: =ROUND(H119*VLOOKUP(B119*1,'APU Scale'!A:B,2,FALSE),-2) -> 0 | N119: 0 | O119: 0 | P119: 6
A120: ORT001 | B120: 6 | K120: =IFERROR(VLOOKUP(P120,'FY23-FY24 Scales'!A:J,10,FALSE),G120) -> 0 | L120: =IFERROR(VLOOKUP(P120,'FY23-FY24 Scales'!A:K,11,FALSE),ROUND(G120*VLOOKUP(B120*1,'APU Scale'!A:B,2,FALSE)-G120,-2)) -> 0 | M120: =ROUND(H120*VLOOKUP(B120*1,'APU Scale'!A:B,2,FALSE),-2) -> 0 | N120: 0 | O120: 0 | P120: 6
A121: ORT001 | B121: 6 | K121: =IFERROR(VLOOKUP(P121,'FY23-FY24 Scales'!A:J,10,FALSE),G121) -> 0 | L121: =IFERROR(VLOOKUP(P121,'FY23-FY24 Scales'!A:K,11,FALSE),ROUND(G121*VLOOKUP(B121*1,'APU Scale'!A:B,2,FALSE)-G121,-2)) -> 0 | M121: =ROUND(H121*VLOOKUP(B121*1,'APU Scale'!A:B,2,FALSE),-2) -> 0 | N121: 0 | O121: 0 | P121: 6
A122: ORT001 | B122: 6 | K122: =IFERROR(VLOOKUP(P122,'FY23-FY24 Scales'!A:J,10,FALSE),G122) -> 0 | L122: =IFERROR(VLOOKUP(P122,'FY23-FY24 Scales'!A:K,11,FALSE),ROUND(G122*VLOOKUP(B122*1,'APU Scale'!A:B,2,FALSE)-G122,-2)) -> 0 | M122: =ROUND(H122*VLOOKUP(B122*1,'APU Scale'!A:B,2,FALSE),-2) -> 0 | N122: 0 | O122: 0 | P122: 6
A123: ORT001 | B123: 6 | K123: =IFERROR(VLOOKUP(P123,'FY23-FY24 Scales'!A:J,10,FALSE),G123) -> 0 | L123: =IFERROR(VLOOKUP(P123,'FY23-FY24 Scales'!A:K,11,FALSE),ROUND(G123*VLOOKUP(B123*1,'APU Scale'!A:B,2,FALSE)-G123,-2)) -> 0 | M123: =ROUND(H123*VLOOKUP(B123*1,'APU Scale'!A:B,2,FALSE),-2) -> 0 | N123: 0 | O123: 0 | P123: 6
A124: ORT001 | B124: 6 | K124: =IFERROR(VLOOKUP(P124,'FY23-FY24 Scales'!A:J,10,FALSE),G124) -> 0 | L124: =IFERROR(VLOOKUP(P124,'FY23-FY24 Scales'!A:K,11,FALSE),ROUND(G124*VLOOKUP(B124*1,'APU Scale'!A:B,2,FALSE)-G124,-2)) -> 0 | M124: =ROUND(H124*VLOOKUP(B124*1,'APU Scale'!A:B,2,FALSE),-2) -> 0 | N124: 0 | O124: 0 | P124: 6
A125: ORT001 | B125: 6 | K125: =IFERROR(VLOOKUP(P125,'FY23-FY24 Scales'!A:J,10,FALSE),G125) -> 0 | L125: =IFERROR(VLOOKUP(P125,'FY23-FY24 Scales'!A:K,11,FALSE),ROUND(G125*VLOOKUP(B125*1,'APU Scale'!A:B,2,FALSE)-G125,-2)) -> 0 | M125: =ROUND(H125*VLOOKUP(B125*1,'APU Scale'!A:B,2,FALSE),-2) -> 0 | N125: 0 | O125: 0 | P125: 6
A126: ORT001 | B126: 6 | K126: =IFERROR(VLOOKUP(P126,'FY23-FY24 Scales'!A:J,10,FALSE),G126) -> 0 | L126: =IFERROR(VLOOKUP(P126,'FY23-FY24 Scales'!A:K,11,FALSE),ROUND(G126*VLOOKUP(B126*1,'APU Scale'!A:B,2,FALSE)-G126,-2)) -> 0 | M126: =ROUND(H126*VLOOKUP(B126*1,'APU Scale'!A:B,2,FALSE),-2) -> 0 | N126: 0 | O126: 0 | P126: 6
A127: ORT001 | B127: 6 | K127: =IFERROR(VLOOKUP(P127,'FY23-FY24 Scales'!A:J,10,FALSE),G127) -> 0 | L127: =IFERROR(VLOOKUP(P127,'FY23-FY24 Scales'!A:K,11,FALSE),ROUND(G127*VLOOKUP(B127*1,'APU Scale'!A:B,2,FALSE)-G127,-2)) -> 0 | M127: =ROUND(H127*VLOOKUP(B127*1,'APU Scale'!A:B,2,FALSE),-2) -> 0 | N127: 0 | O127: 0 | P127: 6
A128: ORT001 | B128: 6 | K128: =IFERROR(VLOOKUP(P128,'FY23-FY24 Scales'!A:J,10,FALSE),G128) -> 0 | L128: =IFERROR(VLOOKUP(P128,'FY23-FY24 Scales'!A:K,11,FALSE),ROUND(G128*VLOOKUP(B128*1,'APU Scale'!A:B,2,FALSE)-G128,-2)) -> 0 | M128: =ROUND(H128*VLOOKUP(B128*1,'APU Scale'!A:B,2,FALSE),-2) -> 0 | N128: 0 | O128: 0 | P128: 6
A129: ORT001 | B129: 6 | K129: =IFERROR(VLOOKUP(P129,'FY23-FY24 Scales'!A:J,10,FALSE),G129) -> 0 | L129: =IFERROR(VLOOKUP(P129,'FY23-FY24 Scales'!A:K,11,FALSE),ROUND(G129*VLOOKUP(B129*1,'APU Scale'!A:B,2,FALSE)-G129,-2)) -> 0 | M129: =ROUND(H129*VLOOKUP(B129*1,'APU Scale'!A:B,2,FALSE),-2) -> 0 | N129: 0 | O129: 0 | P129: 6
A130: ORT001 | B130: 6 | K130: =IFERROR(VLOOKUP(P130,'FY23-FY24 Scales'!A:J,10,FALSE),G130) -> 0 | L130: =IFERROR(VLOOKUP(P130,'FY23-FY24 Scales'!A:K,11,FALSE),ROUND(G130*VLOOKUP(B130*1,'APU Scale'!A:B,2,FALSE)-G130,-2)) -> 0 | M130: =ROUND(H130*VLOOKUP(B130*1,'APU Scale'!A:B,2,FALSE),-2) -> 0 | N130: 0 | O130: 0 | P130: 6
A131: ORT001 | B131: 6 | K131: =IFERROR(VLOOKUP(P131,'FY23-FY24 Scales'!A:J,10,FALSE),G131) -> 0 | L131: =IFERROR(VLOOKUP(P131,'FY23-FY24 Scales'!A:K,11,FALSE),ROUND(G131*VLOOKUP(B131*1,'APU Scale'!A:B,2,FALSE)-G131,-2)) -> 0 | M131: =ROUND(H131*VLOOKUP(B131*1,'APU Scale'!A:B,2,FALSE),-2) -> 0 | N131: 0 | O131: 0 | P131: 6
A132: ORT001 | B132: 6 | K132: =IFERROR(VLOOKUP(P132,'FY23-FY24 Scales'!A:J,10,FALSE),G132) -> 0 | L132: =IFERROR(VLOOKUP(P132,'FY23-FY24 Scales'!A:K,11,FALSE),ROUND(G132*VLOOKUP(B132*1,'APU Scale'!A:B,2,FALSE)-G132,-2)) -> 0 | M132: =ROUND(H132*VLOOKUP(B132*1,'APU Scale'!A:B,2,FALSE),-2) -> 0 | N132: 0 | O132: 0 | P132: 6
A133: ORT001 | B133: 6 | K133: =IFERROR(VLOOKUP(P133,'FY23-FY24 Scales'!A:J,10,FALSE),G133) -> 0 | L133: =IFERROR(VLOOKUP(P133,'FY23-FY24 Scales'!A:K,11,FALSE),ROUND(G133*VLOOKUP(B133*1,'APU Scale'!A:B,2,FALSE)-G133,-2)) -> 0 | M133: =ROUND(H133*VLOOKUP(B133*1,'APU Scale'!A:B,2,FALSE),-2) -> 0 | N133: 0 | O133: 0 | P133: 6
A134: ORT001 | B134: 6 | K134: =IFERROR(VLOOKUP(P134,'FY23-FY24 Scales'!A:J,10,FALSE),G134) -> 0 | L134: =IFERROR(VLOOKUP(P134,'FY23-FY24 Scales'!A:K,11,FALSE),ROUND(G134*VLOOKUP(B134*1,'APU Scale'!A:B,2,FALSE)-G134,-2)) -> 0 | M134: =ROUND(H134*VLOOKUP(B134*1,'APU Scale'!A:B,2,FALSE),-2) -> 0 | N134: 0 | O134: 0 | P134: 6
A135: ORT001 | B135: 6 | K135: =IFERROR(VLOOKUP(P135,'FY23-FY24 Scales'!A:J,10,FALSE),G135) -> 0 | L135: =IFERROR(VLOOKUP(P135,'FY23-FY24 Scales'!A:K,11,FALSE),ROUND(G135*VLOOKUP(B135*1,'APU Scale'!A:B,2,FALSE)-G135,-2)) -> 0 | M135: =ROUND(H135*VLOOKUP(B135*1,'APU Scale'!A:B,2,FALSE),-2) -> 0 | N135: 0 | O135: 0 | P135: 6
A136: ORT001 | B136: 6 | K136: =IFERROR(VLOOKUP(P136,'FY23-FY24 Scales'!A:J,10,FALSE),G136) -> 0 | L136: =IFERROR(VLOOKUP(P136,'FY23-FY24 Scales'!A:K,11,FALSE),ROUND(G136*VLOOKUP(B136*1,'APU Scale'!A:B,2,FALSE)-G136,-2)) -> 0 | M136: =ROUND(H136*VLOOKUP(B136*1,'APU Scale'!A:B,2,FALSE),-2) -> 0 | N136: 0 | O136: 0 | P136: 6
A137: ORT001 | B137: 6 | K137: =IFERROR(VLOOKUP(P137,'FY23-FY24 Scales'!A:J,10,FALSE),G137) -> 0 | L137: =IFERROR(VLOOKUP(P137,'FY23-FY24 Scales'!A:K,11,FALSE),ROUND(G137*VLOOKUP(B137*1,'APU Scale'!A:B,2,FALSE)-G137,-2)) -> 0 | M137: =ROUND(H137*VLOOKUP(B137*1,'APU Scale'!A:B,2,FALSE),-2) -> 0 | N137: 0 | O137: 0 | P137: 6
A138: ORT001 | B138: 6 | K138: =IFERROR(VLOOKUP(P138,'FY23-FY24 Scales'!A:J,10,FALSE),G138) -> 0 | L138: =IFERROR(VLOOKUP(P138,'FY23-FY24 Scales'!A:K,11,FALSE),ROUND(G138*VLOOKUP(B138*1,'APU Scale'!A:B,2,FALSE)-G138,-2)) -> 0 | M138: =ROUND(H138*VLOOKUP(B138*1,'APU Scale'!A:B,2,FALSE),-2) -> 0 | N138: =K138+L138+M138 -> 0 | O138: =IF(I138-J138-N138<0,0,I138-J138-N138) -> 0 | P138: 6
A139: ORT001 | B139: 6 | K139: =IFERROR(VLOOKUP(P139,'FY23-FY24 Scales'!A:J,10,FALSE),G139) -> 0 | L139: =IFERROR(VLOOKUP(P139,'FY23-FY24 Scales'!A:K,11,FALSE),ROUND(G139*VLOOKUP(B139*1,'APU Scale'!A:B,2,FALSE)-G139,-2)) -> 0 | M139: =ROUND(H139*VLOOKUP(B139*1,'APU Scale'!A:B,2,FALSE),-2) -> 0 | N139: 0 | O139: 0 | P139: 6

Sheet APU Master (hidden)
A1: as of 6/28/24
A2: APU Master List
A4: Department/School | B4: APU Code | C4: Scale | D4: APU Name | E4: APU Definition
A5: Anesthesiology | B5: ANE001 | C5: 5 | D5: Anesthesiology Clinical Faculty | E5: All clinical faculty members in department.
A6: Anesthesiology | B6: ANEGCP | C6: 1 | D6: Anesthesiology Ph.D. Faculty | E6: All Ph.D. faculty members in department.
A7: Cellular & Molecular Medicine | B7: CMM001 | C7: 4 | D7: Cellular & Molecular Medicine | E7: Faculty with primary appointment in the Department of Cellular and Molecular Medicine.
A8: Dermatology | B8: MED043 | C8: 3 | D8: Dermatology Clinical Faculty | E8: Clinically active faculty members in the Division of Dermatology.
A9: Dermatology | B9: PEDDER | C9: 7 | D9: Dermatology | E9: Faculty specializing in Pediatric Dermatology who hold M.D. degree
A10: Emergency Medicine | B10: EMS001 | C10: 7 | D10: DEM Faculty Leadership (EMS) | E10: All faculty board certified in Emergency Medicine with active clinical, teaching, and scholarly profiles and have current major administrative and academic leadership positions or responsibilities, and must be long term positions within the department (e.g., Chair, Vice Chair, etc.).
A11: Emergency Medicine | B11: EMS002 | C11: 6 | D11: DEM Faculty (EMS) | E11: Full-time EMS faculty carrying full clinical responsibility along with teaching and scholarly productivity requirements.
A12: Emergency Medicine | B12: EMS003 | C12: 1 | D12: DEM Research Faculty | E12: All faculty in this APU are PhD researchers in the Dept of Emergency Medicine.
A13: Family Medicine | B13: FPM001 | C13: 5 | D13: Family Medicine Physician and Leadership Faculty | E13: All department faculty with medical doctoral degree (e.g. MD, DO) and/or Vice Chairs and Division Chiefs with or without medical doctoral degree (e.g. MD, DO, PhD, PsyD).
A14: Family Medicine | B14: FPM002 | C14: 3 | D14: Family Medicine Non-Physician Faculty | E14: All department faculty with non-medical doctoral degrees (e.g. PhD, PsyD).
A15: Family Medicine | B15: FPM003 | C15: 5 | D15: Family Medicine PACE Faculty | E15: All department faculty who are PACE (Physician Assessment Clinical Ed) Program faculty directors.
A16: Medicine | B16: MED029 | C16: 1 | D16: Gastroenterology Research Faculty | E16: Research faculty members in the Division of Gastroenterology without clinical duties. Other Department research oriented faculty members without clinical duties may participate in this APU as well.
A17: Medicine | B17: MED031 | C17: 3 | D17: Genomics & Precision Medicine Faculty | E17: Clinically active and Research faculty members in the Division of Genomics & Precision Medicine.
A18: Medicine | B18: MED041 | C18: 3 | D18: Bone Marrow Transplantation Faculty | E18: Clinically active faculty members in the Division of Bone Marrow Transplant.
A19: Medicine | B19: MED042 | C19: 3 | D19: Cardiovascular Medicine Clinical & Research Faculty | E19: Clinically active and Research faculty members in the Division of Cardiovascular Medicine.
A20: Medicine | B20: MED044 | C20: 3 | D20: Endocrinology/Metabolism Clinical & Research Faculty | E20: Clinically active and Research faculty members in the Division of Endocrinology/Metabolism.
A21: Medicine | B21: MED045 | C21: 3 | D21: Gastroenterology/Hepatology Clinical & Research Faculty | E21: Clinically active and Research faculty members in the Division of Gastroenterology/Hepatology.
A22: Medicine | B22: MED046 | C22: 3 | D22: General Internal Medicine Clinical & Research Faculty | E22: Clinically active and Research faculty members in the Division of General Internal Medicine.
A23: Medicine | B23: MED048 | C23: 3 | D23: Hematology/Oncology Clinical & Research Faculty | E23: Clinically active and Research faculty members in the Division of Hematology/Oncology.
A24: Medicine | B24: MED049 | C24: 3 | D24: Hospital Medicine Clinical Faculty | E24: Clinically active faculty members in the Division of Hospital Medicine.
A25: Medicine | B25: MED050 | C25: 3 | D25: Infectious Diseases Clinical & Research Faculty | E25: Clinically active and Research faculty members in the Division of Infectious Diseases.
A26: Medicine | B26: MED051 | C26: 3 | D26: Nephrology Clinical & Research Faculty | E26: Clinically active and Research faculty members in the Division of Nephrology.
A27: Medicine | B27: MED053 | C27: 3 | D27: Pulmonary Clinical & Research Faculty | E27: Clinically active and Research faculty members in the Division of Pulmonary.
A28: Medicine | B28: MED054 | C28: 3 | D28: Rheumatology, Autoimmunity and Inflammation and Allergy and Immunology Faculty | E28: Clinically active and Research faculty members in the Division of Rheumatology, Autoimmunity and Inflammation and the Division of Allergy and Immunology.
A29: Medicine | B29: MED055 | C29: 3 | D29: Owens Clinical & Research Faculty | E29: Clinically active and Research faculty members in the Division Owens Clinic.
A30: Medicine | B30: MED056 | C30: 7 | D30: Endocrinology/Metabolism APU7 | E30: Board Certified Endocrinologists with Academic Senate membership in FTE or IR series who are eligible for 100% UCRP participation.
A31: Medicine | B31: MED074 | C31: 3 | D31: Geriatrics, Gerontology and Palliative Care Faculty | E31: Clinically active and Research faculty members in the Division of Geriatrics, Gerontology and Palliative Care.
A32: Medicine | B32: MED076 | C32: 5 | D32: Department's Division Chief Faculty (present and former) | E32: DOM faculty members assigned as Division Chiefs as well as Department leadership positions as assigned by the Chair Person. Effective FY24 membership in this APU is assigned for the duration of the leadership term.
A33: Medicine | B33: MED077 | C33: 3 | D33: Global Public Health Faculty | E33: Clinically active and Research faculty members in the Division of Global Public Health.
A34: Medicine | B34: MED078 | C34: 3 | D34: Biomedical Informatics Clinical & Research Faculty | E34: Clinically active and Research faculty members in the Division of Biomedical Informatics.
A35: Medicine | B35: MED079 | C35: 3 | D35: Regenerative Medicine Clinical & Research Faculty | E35: Clinically active and Research faculty members in the Division of Regenerative Medicine.
A36: Medicine | B36: MED100 | C36: 0 | D36: DOM Non-Clinical APU0 | E36: PhD, non-licensed MD and/or PhD/MD faculty members in the DOM who are research oriented and without clinical duties. Similar research would include faculty members who investigate the patho-physiological and molecular basis of diseases.
A37: Neurological Surgery | B37: NSG001 | C37: 9 | D37: Neurological Surgery Clinical Faculty | E37: Clinically active faculty members in the Department of Neurological Surgery
A38: Neurosciences | B38: NEU001 | C38: 1 | D38: Neurosciences Basic Scientists | E38: Ph.D.s in the Department of Neurosciences
A39: Neurosciences | B39: NEU003 | C39: 3 | D39: Neurosciences Clinicians | E39: M.D.s in the Department of Neurosciences
A40: Neurosciences | B40: NEUCHR | C40: 6 | D40: Neurosciences Chairs/Vice Chairs/ORU Directors | E40: Chair, Vice Chair/Directors of ORUs or other major, large-scale projects in the Dept of Neurosciences.
A41: OBGYN & Reproductive Sciences | B41: RPR001 | C41: 7 | D41: Reproductive Medicine Clinical Faculty | E41: Clinical faculty.
A42: OBGYN & Reproductive Sciences | B42: RPR003 | C42: 3 | D42: Reproductive Medicine Other PhD Faculty | E42: Reproductive Medicine Other PhD Faculty
A43: OBGYN & Reproductive Sciences | B43: RPR004 | C43: 6 | D43: Center Grant Directors, Co-Directors, Core Directors | E43: All research Ph.D. faculty who are Directors, Co-Directors &/or Core Directors of a Center Grant.
A44: Ophthalmology | B44: OPH001 | C44: 9 | D44: Ophthalmology Surgical Clinical Faculty | E44: Ophthalmology Surgical Clinical Faculty
A45: Ophthalmology | B45: OPHGCP | C45: 2 | D45: Ophthalmology Ph.D. Faculty | E45: Academics spending 80% or more time on research & academics with a valid 2113 allowing for patient care activities in addition to their research.
A46: Orthopaedic Surgery | B46: ORT001 | C46: 6 | D46: Orthopaedics Clinical Faculty | E46: UCSD Orthopaedic Surgery faculty whose primary function is adult clinical care surgeons.
A47: Orthopaedic Surgery | B47: ORT002 | C47: 3 | D47: Ortho Surgery Research Faculty | E47: Ph.D. and M.D. faculty whose primary function is research
A48: Orthopaedic Surgery | B48: ORT004 | C48: 6 | D48: Ortho Surg Fac w/Vice Chair/Residency Directorship | E48: Orthopaedic Surgery faculty holding title of Vice Chair or Residency Director & involved in the administration of the various missions of the department.
A49: Orthopaedic Surgery | B49: ORT005 | C49: 8 | D49: Ortho Surg Children's Faculty | E49: Orthopaedic Surgery faculty whose primary function is as pediatric surgeons with the majority (51% or more) of their time at Rady Children’s Hospital, associated clinics, and research labs.
A50: Orthopaedic Surgery | B50: ORT006 | C50: 3 | D50: Orthopaedic Surgery Non-Surgical Faculty | E50: UCSD Orthopaedic Surgery faculty whose primary function is the non-surgical care of patients at UCSD Medical Center and associated clinics.
A51: Pathology | B51: PTH001 | C51: 1 | D51: Pathology Pre-Clinical Faculty | E51: All preclinical faculty regardless of area of research.
A52: Pathology | B52: PTH002 | C52: 2 | D52: Faculty who teach or research veterinary medicine | E52: Faculty will teach or research veterinary medicine, focus upon clinical &/or resident & graduate student instruction into comparative pathology & medicine.
A53: Pathology | B53: PTH003 | C53: 4 | D53: Pathology Clinically Active Faculty | E53: All clinically active faculty regardless of subspecialty in Pathology.
A54: Pathology | B54: PTH004 | C54: 5 | D54: Executive Leadership Committee | E54: Specific division heads, including clinical path, anatomic path, neuropathology & Vice Chair Res. Members of APU will have MD and PhD degrees. Exe Leadership Com will focus on advising Chair on clinical, res & education issues, develop & implement policy.
A55: Pathology | B55: PTH005 | C55: 3 | D55: Department Based Ph.D. Scientists | E55: Ph.D. scientists who are engaged in substantial teaching activities for SOM, SSOP &/or graduate studies. Must teach 50 contact hours in SOM, SOP &/or grad school program core courses each 12 months.
A56: Pediatrics | B56: PEDCAR | C56: 7 | D56: Cardiology & Gastroenterology | E56: Clinically active faculty specializing in Pediatric Cardiology, Critical Care, Gastroenterology, Hepatology, and Nutrition
A57: Pediatrics | B57: PEDEME | C57: 5 | D57: Emergency Medicine, Infectious Diseases, Respiratory Medicine | E57: Clinically active faculty specializing in Pediatric Emergency Medicine, Infectious Diseases, and Respiratory Medicine
A58: Pediatrics | B58: PEDNEO | C58: 9 | D58: Neonatology | E58: Faculty who holds an M.D. or D.O. specializing in Pediatric Neonatology
A59: Pediatrics | B59: PEDPED | C59: 3 | D59: Pediatric Subspecialties | E59: Clinically active faculty specializing in Pediatrics Allergy, Immunology, Rheumatology, Child Development, General Pediatrics, Adolescent Medicine, Newborn Nursery, Urgent Care, Endocrinology, Genetics, Genomics, Dysmorphology, Hematology/Oncology, Hospital Medicine, Nephrology and faculty who are performing significant leadership roles in cutting-edge and high priority programs areas in Genomics, Dysmorphology/Teratology, Stem Cells, Diabetes, and Host-Microbe Systems & Therapeutics.
A60: Pediatrics | B60: PEDPHD | C60: 3 | D60: PhD Faculty & Non-clinically Active MD Faculty | E60: PhD and non‐clinically active MD faculty whose primary function is research
A61: Pharmacology | B61: PHR000 | C61: 0 | D61: Other Research | E61: This APU is reserved for those investigators without an extramurally funded independent research program* or those with less than a full FTE. Faculty who qualify for a higher APU can voluntarily choose to belong to a lower APU. *An investigator without an extramurally funded independent research program is one who does not serve as Principal Investigator on one or more active research grant or contract, or direct a project/core on a PPG.
A62: Pharmacology | B62: PHR001 | C62: 1 | D62: Teaching & Research Group II | E62: Consists of faculty who have not participated in integrated research programs that insure continuous research activity and support mechanisms or faculty having heavy administrative commitments.
A63: Pharmacology | B63: PHR003 | C63: 3 | D63: Coordinated Research & Teaching Unit | E63: Formed by faculty group who conduct coordinated research and teaching activities. Activities include graduate student and fellow training, weekly research discussions, participation in centers and program projects supported for extended periods.
A64: Pharmacology | B64: PHR005 | C64: 5 | D64: Coordinated Research, Teaching, & Program Mgmt Unit | E64: Participate in all activities of PHR003 plus creation, organization, management of major programs such as PPGs, MSTP, Superfund, Pharmacogenomics.
A65: Psychiatry | B65: PST000 | C65: 0 | D65: Base appointment | E65: Reserved for investigators without active research programs.
A66: Psychiatry | B66: PST001 | C66: 1 | D66: Pre-Clinical & Basic Science Faculty | E66: Preclinical researchers and clinician educators without patient contact.
A67: Psychiatry | B67: PST002 | C67: 2 | D67: PhD Clinical Faculty | E67: Non-medical doctoral degree (e.g., PhD, PsyD) with patient contact at UCSD or affiliate site.
A68: Psychiatry | B68: PST003 | C68: 3 | D68: MD or Externally Funded Faculty | E68: 1. Medical degree (e.g., MD, DO) with patient contact at UCSD or affiliate site; or 2. Externally-funded project.
A69: Psychiatry | B69: PST004 | C69: 4 | D69: Faculty with Significant Administrative Functions | E69: 1. Significant administrative functions (e.g., Associate Vice Chair); or 2. Training program lead role (e.g., T32 or R25).
A70: Psychiatry | B70: PST005 | C70: 5 | D70: Faculty Directing Complex Programs | E70: 1. Major administrative functions (e.g., Vice Chair, Division Chief, ORU Director), or 2. Major training program director role (e.g., Joint Doctoral Program in Clinical Psychology, Adult Residency Training), or 3. Major, large-scale projects.
A71: Psychiatry | B71: PST006 | C71: 6 | D71: Faculty with Major Leadership Functions | E71: 1. Major, large-scale projects plus significant/major administrative functions, or 2. Chair or Executive Vice Chair.
A72: Radiation Medicine and Applied Sciences | B72: RAO002 | C72: 8 | D72: Radiation Oncology Faculty (RAO) | E72: Radiation Oncology Faculty
A73: Radiation Medicine and Applied Sciences | B73: RAO005 | C73: 5 | D73: Radiation Oncology PhD Physicists (RAO) | E73: Radiation Oncology Ph.D. Physicists
A74: Radiology | B74: RAD001 | C74: 8 | D74: Diagnostic Division M.D. Faculty (RAD) | E74: Diagnostic Division MDs.
A75: Radiology | B75: RAD003 | C75: 2 | D75: Diagnostic Division Ph.D. Faculty (RAD) | E75: Diagnostic Division PhDs.
A76: Radiology | B76: RAD004 | C76: 5 | D76: Radiology fMRI Division Faculty | E76: Radiology fMRI Division Faculty
A77: Radiology | B77: RAD005 | C77: 5 | D77: Senior Research Imaging Faculty | E77: Senior Research Imaging Faculty
A78: SOM School-Wide APUs | B78: SOM001 | C78: 6 | D78: Academic Deans/Directors/Department Chairs | E78: Current and former Chairs, Academic Deans, Assoc Deans, Assistant Deans, Directors of Institutionally Mandated ORUs or Institutionally Mandated Non-ORU Centers in Health Sciences previously designated as ORUs in Health Sciences & Directors appointed to Health Sciences mandated administrative roles.
A79: SOM School-Wide APUs | B79: SOM002 | C79: 7 | D79: Surgical Chairs | E79: Leadership in Depts that have surgical procedures. Currently OPH, ORT, RPR, SUR.
A80: SOM School-Wide APUs | B80: SOM003 | C80: 3 | D80: Cross Department Nerve Injury APU | E80: Investigators dedicated to the restoration of functional losses due to nerve injury with NIH, UCSD and VA Healthcare System support.
A81: SOM School-Wide APUs | B81: SOM004 | C81: 0 | D81: Physician Assistant Program APU | E81: Faculty in the Physician Assistant program.
A82: SOM School-Wide APUs | B82: SOM009 | C82: 9 | D82: HS Mission Leaders APU | E82: Thought Leaders in education, research, and clinical missions responsible for the leadership in strategy of the mssions and provide the academic counsel on mission direction, development, and implementation of programs and initiatives, and accountability for the successes and failure of the primary missions of HS.
A83: SOM School-Wide APUs | B83: SOMVA1 | C83: 0 | D83: Base UC/VA split appointment APU | E83: Base UC/VA split appointment School wide APU
A84: Surgery | B84: SUR001 | C84: 7 | D84: General & Pediatric Surgery Division Faculty (SUR) | E84: Faculty in the Division of General Surgery who belong to MSCCP.
A85: Surgery | B85: SUR002 | C85: 9 | D85: Cardiothoracic Surgery Division Faculty (SUR) | E85: Faculty in the Division of Cardiothoracic Surgery who belong to MSCCP.
A86: Surgery | B86: SUR004 | C86: 7 | D86: Otolaryngology Division Faculty (SUR) | E86: Faculty in the Division of Otolaryngology who belong to MSCCP.
A87: Surgery | B87: SUR005 | C87: 7 | D87: Plastic Surgery Division Faculty (SUR) | E87: Faculty in the Division of Plastic Surgery who belong to MSCCP.
A88: Surgery | B88: SUR006 | C88: 8 | D88: Trauma/Burn Division Faculty (SUR) | E88: Faculty in the Division of Trauma/Burn who belong to MSCCP.
A89: Surgery | B89: SUR008 | C89: 1 | D89: Surgery PhD and non-clinically active MD Faculty | E89: Surgery PhD faculty and MD faculty who are engaged primarily in research and teaching without a clinical practice.
A90: Urology | B90: SUR007 | C90: 7 | D90: Urology Division Faculty (SUR) | E90: Faculty in the Division of Urology who belong to MSCCP.
A91: Herbert Wertheim School of Public Health and Human Longevity Science (HWSPH) | B91: SPH000 | C91: 0 | D91: Basic Faculty APU | E91: Faculty members in the HWSPH. L(P)SOE faculty. *** HWSPH faculty who qualify for a higher APU may voluntarily choose to belong to a lower APU.
A92: Herbert Wertheim School of Public Health and Human Longevity Science (HWSPH) | B92: SPH002 | C92: 2 | D92: Prior FMPH APU Faculty | E92: Faculty with experience conducting public health research and/or teaching in a School of Medicine. *** HWSPH faculty who qualify for a higher APU may voluntarily choose to belong to a lower APU.
A93: Herbert Wertheim School of Public Health and Human Longevity Science (HWSPH) | B93: SPH003 | C93: 3 | D93: Public Health Research and Teaching Faculty | E93: Faculty members in the HWSPH that lead or participate in funded research and/or teach in the School's degree programs. *** HWSPH faculty who qualify for a higher APU may voluntarily choose to belong to a lower APU.
A94: Herbert Wertheim School of Public Health and Human Longevity Science (HWSPH) | B94: SPH005 | C94: 5 | D94: School Leadership | E94: Faculty who hold, or have held, a high‐level leadership position in the HWSPH including Division Chiefs and degree program Directors, which include a significant amount of administrative service supporting the School. At the discretion of the Dean, this APU may be extended to HWSPH faculty who hold similar level leadership positions elsewhere in Health Sciences or the University. *** HWSPH faculty who qualify for a higher APU may voluntarily choose to belong to a lower APU.
A95: Herbert Wertheim School of Public Health and Human Longevity Science (HWSPH) | B95: SPH006 | C95: 6 | D95: Assistant and Associate Deans, Dean | E95: Faculty who hold, or have held, an Assistant Dean, Associate Dean, or Dean appointment in the HWSPH, which include a significant amount of administrative service supporting the School. At the discretion of the Dean, this APU may be extended to HWSPH faculty who hold senior leadership positions elsewhere in Health Sciences or the University such as Assisstant / Associate Vice Chancellor, Vice Chancellor, ORU Director. *** HWSPH faculty who qualify for a higher APU may voluntarily choose to belong to a lower APU.
A96: Skaggs School of Pharmacy and Pharmaceutical Sciences | B96: SOP001 | C96: 6 | D96: Assistant and Associate Deans, Dean | E96: Must be an Assistant or Associate Dean in the Skaggs School of Pharmacy and Pharmaceutical Sciences who supports the teaching, research, clinical and community service missions of the University. Activities include a large amount of administrative service supporting the School and the University. SSPPS faculty who qualify for a higher APU may voluntarily choose to belong to a lower APU.
A97: Skaggs School of Pharmacy and Pharmaceutical Sciences | B97: SOP002 | C97: 3 | D97: SSPPS clinical + research + teaching | E97: A faculty group in the Skaggs School of Pharmacy and Pharmaceutical Sciences (SSPPS) that conducts coordinated clinical (and/or patient care), and/or research and teaching activities. These activities include training pharmacy, medical and graduate students in the classroom, research discussions and seminars, clinical research, clinical patient fairs, and work in the University free clinics and community clinics providing patient education and/or services, or being the PI on grants, and participation in centers and program projects. SSPPS faculty who qualify for a higher APU may voluntarily choose to belong to a lower APU.
A98: Skaggs School of Pharmacy and Pharmaceutical Sciences | B98: SOP003 | C98: 0 | D98: Basic Faculty APU | E98: A group of faculty members in the Skaggs School of Pharmacy & Pharmaceutical Sciences (SSPPS) who are research oriented and/or contribute a significant portion of their effort to the teaching mission. SSPPS faculty who qualify for a higher APU may voluntarily choose to belong to a lower APU.

Sheet FY23-FY24 Scales (hidden)
A1: USE THIS TO VERIFY the X, X', and covered comp
A2: * May want to replace "Full" with "Full to match the APU profile
A4: Concatenate (roman numero + user "Full" instead of "Full") | B4: Step (roman numero) | C4: Concatenate | D4: APU | E4: Rank | F4: Step | G4: 07/01 X | H4: 07/01 X' actual | I4: 07/01 Covered Comp | J4: 10/01 X | K4: 10/01 X' actual | L4: 10/01 Covered Comp
A5: =CONCATENATE(E5,B5,D5) -> AssistantI0 | B5: =ROMAN(F5) -> I | C5: =CONCATENATE(E5,F5,D5) -> Assistant10 | D5: 0 | E5: Assistant | F5: 1 | G5: 82200 | H5: 0 | I5: =SUM(G5:H5) -> 82200 | J5: 86500 | K5: 0 | L5: =SUM(J5:K5) -> 86500
A6: =CONCATENATE(E6,B6,D6) -> AssistantII0 | B6: =ROMAN(F6) -> II | C6: =CONCATENATE(E6,F6,D6) -> Assistant20 | D6: 0 | E6: Assistant | F6: 2 | G6: 87100 | H6: 0 | I6: 87100 | J6: 91300 | K6: 0 | L6: =SUM(J6:K6) -> 91300
A7: =CONCATENATE(E7,B7,D7) -> AssistantIII0 | B7: III | C7: Assistant30 | D7: 0 | E7: Assistant | F7: 3 | G7: 92100 | H7: 0 | I7: 92100 | J7: 96400 | K7: 0 | L7: 96400
A8: AssistantIV0 | B8: IV | C8: Assistant40 | D8: 0 | E8: Assistant | F8: 4 | G8: 97200 | H8: 0 | I8: 97200 | J8: 101700 | K8: 0 | L8: 101700
A9: AssistantV0 | B9: V | C9: Assistant50 | D9: 0 | E9: Assistant | F9: 5 | G9: 102400 | H9: 0 | I9: 102400 | J9: 107200 | K9: 0 | L9: 107200
A10: AssistantVI0 | B10: VI | C10: Assistant60 | D10: 0 | E10: Assistant | F10: 6 | G10: 107700 | H10: 0 | I10: 107700 | J10: 112800 | K10: 0 | L10: 112800
A11: AssociateI0 | B11: I | C11: Associate10 | D11: 0 | E11: Associate | F11: 1 | G11: 102500 | H11: 0 | I11: 102500 | J11: 107300 | K11: 0 | L11: 107300
A12: AssociateII0 | B12: II | C12: Associate20 | D12: 0 | E12: Associate | F12: 2 | G12: 107800 | H12: 0 | I12: 107800 | J12: 112900 | K12: 0 | L12: 112900
A13: AssociateIII0 | B13: III | C13: Associate30 | D13: 0 | E13: Associate | F13: 3 | G13: 113400 | H13: 0 | I13: 113400 | J13: 118900 | K13: 0 | L13: 118900
A14: AssociateIV0 | B14: IV | C14: Associate40 | D14: 0 | E14: Associate | F14: 4 | G14: 120100 | H14: 0 | I14: 120100 | J14: 125600 | K14: 0 | L14: 125600
A15: AssociateV0 | B15: V | C15: Associate50 | D15: 0 | E15: Associate | F15: 5 | G15: 129300 | H15: 0 | I15: 129300 | J15: 135300 | K15: 0 | L15: 135300
A16: FullI0 | B16: I | C16: Full10 | D16: 0 | E16: Full | F16: 1 | G16: 120200 | H16: 0 | I16: 120200 | J16: 125700 | K16: 0 | L16: 125700
A17: FullII0 | B17: II | C17: Full20 | D17: 0 | E17: Full | F17: 2 | G17: 129400 | H17: 0 | I17: 129400 | J17: 135400 | K17: 0 | L17: 135400
A18: FullIII0 | B18: III | C18: Full30 | D18: 0 | E18: Full | F18: 3 | G18: 139400 | H18: 0 | I18: 139400 | J18: 145900 | K18: 0 | L18: 145900
A19: FullIV0 | B19: IV | C19: Full40 | D19: 0 | E19: Full | F19: 4 | G19: 149900 | H19: 0 | I19: 149900 | J19: 156900 | K19: 0 | L19: 156900
A20: FullV0 | B20: V | C20: Full50 | D20: 0 | E20: Full | F20: 5 | G20: 161100 | H20: 0 | I20: 161100 | J20: 168700 | K20: 0 | L20: 168700
A21: FullVI0 | B21: VI | C21: Full60 | D21: 0 | E21: Full | F21: 6 | G21: 173200 | H21: 0 | I21: 173200 | J21: 181200 | K21: 0 | L21: 181200
A22: FullVII0 | B22: VII | C22: Full70 | D22: 0 | E22: Full | F22: 7 | G22: 186500 | H22: 0 | I22: 186500 | J22: 195100 | K22: 0 | L22: 195100
A23: FullVIII0 | B23: VIII | C23: Full80 | D23: 0 | E23: Full | F23: 8 | G23: 201600 | H23: 0 | I23: 201600 | J23: 210900 | K23: 0 | L23: 210900
A24: FullIX0 | B24: IX | C24: Full90 | D24: 0 | E24: Full | F24: 9 | G24: 218500 | H24: 0 | I24: 218500 | J24: 228600 | K24: 0 | L24: 228600
A25: AssistantI1 | B25: I | C25: Assistant11 | D25: 1 | E25: Assistant | F25: 1 | G25: 82200 | H25: 8300 | I25: 90500 | J25: 86500 | K25: 8700 | L25: 95200
A26: AssistantII1 | B26: II | C26: Assistant21 | D26: 1 | E26: Assistant | F26: 2 | G26: 87100 | H26: 8800 | I26: 95900 | J26: 91300 | K26: 9200 | L26: 100500
A27: AssistantIII1 | B27: III | C27: Assistant31 | D27: 1 | E27: Assistant | F27: 3 | G27: 92100 | H27: 9300 | I27: 101400 | J27: 96400 | K27: 9700 | L27: 106100
A28: AssistantIV1 | B28: IV | C28: Assistant41 | D28: 1 | E28: Assistant | F28: 4 | G28: 97200 | H28: 9800 | I28: 107000 | J28: 101700 | K28: 10200 | L28: 111900
A29: AssistantV1 | B29: V | C29: Assistant51 | D29: 1 | E29: Assistant | F29: 5 | G29: 102400 | H29: 10300 | I29: 112700 | J29: 107200 | K29: 10800 | L29: 118000
A30: AssistantVI1 | B30: VI | C30: Assistant61 | D30: 1 | E30: Assistant | F30: 6 | G30: 107700 | H30: 10800 | I30: 118500 | J30: 112800 | K30: 11300 | L30: 124100
A31: AssociateI1 | B31: I | C31: Associate11 | D31: 1 | E31: Associate | F31: 1 | G31: 102500 | H31: 10300 | I31: 112800 | J31: 107300 | K31: 10800 | L31: 118100
A32: AssociateII1 | B32: II | C32: Associate21 | D32: 1 | E32: Associate | F32: 2 | G32: 107800 | H32: 10800 | I32: 118600 | J32: 112900 | K32: 11300 | L32: 124200
A33: AssociateIII1 | B33: III | C33: Associate31 | D33: 1 | E33: Associate | F33: 3 | G33: 113400 | H33: 11400 | I33: 124800 | J33: 118900 | K33: 11900 | L33: 130800
A34: AssociateIV1 | B34: IV | C34: Associate41 | D34: 1 | E34: Associate | F34: 4 | G34: 120100 | H34: 12100 | I34: 132200 | J34: 125600 | K34: 12600 | L34: 138200
A35: AssociateV1 | B35: V | C35: Associate51 | D35: 1 | E35: Associate | F35: 5 | G35: 129300 | H35: 13000 | I35: 142300 | J35: 135300 | K35: 13600 | L35: 148900
A36: FullI1 | B36: I | C36: Full11 | D36: 1 | E36: Full | F36: 1 | G36: 120200 | H36: 12100 | I36: 132300 | J36: 125700 | K36: 12600 | L36: 138300
A37: FullII1 | B37: II | C37: Full21 | D37: 1 | E37: Full | F37: 2 | G37: 129400 | H37: 13000 | I37: 142400 | J37: 135400 | K37: 13600 | L37: 149000
A38: FullIII1 | B38: III | C38: Full31 | D38: 1 | E38: Full | F38: 3 | G38: 139400 | H38: 14000 | I38: 153400 | J38: 145900 | K38: 14600 | L38: 160500
A39: FullIV1 | B39: IV | C39: Full41 | D39: 1 | E39: Full | F39: 4 | G39: 149900 | H39: 15000 | I39: 164900 | J39: 156900 | K39: 15700 | L39: 172600
A40: FullV1 | B40: V | C40: Full51 | D40: 1 | E40: Full | F40: 5 | G40: 161100 | H40: 16200 | I40: 177300 | J40: 168700 | K40: 16900 | L40: 185600
A41: FullVI1 | B41: VI | C41: Full61 | D41: 1 | E41: Full | F41: 6 | G41: 173200 | H41: 17400 | I41: 190600 | J41: 181200 | K41: 18200 | L41: 199400
A42: FullVII1 | B42: VII | C42: Full71 | D42: 1 | E42: Full | F42: 7 | G42: 186500 | H42: 18700 | I42: 205200 | J42: 195100 | K42: 19600 | L42: 214700
A43: FullVIII1 | B43: VIII | C43: Full81 | D43: 1 | E43: Full | F43: 8 | G43: 201600 | H43: 20200 | I43: 221800 | J43: 210900 | K43: 21100 | L43: 232000
A44: FullIX1 | B44: IX | C44: Full91 | D44: 1 | E44: Full | F44: 9 | G44: 218500 | H44: 21900 | I44: 240400 | J44: 228600 | K44: 22900 | L44: 251500
A45: AssistantI2 | B45: I | C45: Assistant12 | D45: 2 | E45: Assistant | F45: 1 | G45: 82200 | H45: 16500 | I45: 98700 | J45: 86500 | K45: 17300 | L45: 103800
A46: AssistantII2 | B46: II | C46: Assistant22 | D46: 2 | E46: Assistant | F46: 2 | G46: 87100 | H46: 17500 | I46: 104600 | J46: 91300 | K46: 18300 | L46: 109600
A47: AssistantIII2 | B47: III | C47: Assistant32 | D47: 2 | E47: Assistant | F47: 3 | G47: 92100 | H47: 18500 | I47: 110600 | J47: 96400 | K47: 19300 | L47: 115700
A48: AssistantIV2 | B48: IV | C48: Assistant42 | D48: 2 | E48: Assistant | F48: 4 | G48: 97200 | H48: 19500 | I48: 116700 | J48: 101700 | K48: 20400 | L48: 122100
A49: AssistantV2 | B49: V | C49: Assistant52 | D49: 2 | E49: Assistant | F49: 5 | G49: 102400 | H49: 20500 | I49: 122900 | J49: 107200 | K49: 21500 | L49: 128700
A50: AssistantVI2 | B50: VI | C50: Assistant62 | D50: 2 | E50: Assistant | F50: 6 | G50: 107700 | H50: 21600 | I50: 129300 | J50: 112800 | K50: 22600 | L50: 135400
A51: AssociateI2 | B51: I | C51: Associate12 | D51: 2 | E51: Associate | F51: 1 | G51: 102500 | H51: 20500 | I51: 123000 | J51: 107300 | K51: 21500 | L51: 128800
A52: AssociateII2 | B52: II | C52: Associate22 | D52: 2 | E52: Associate | F52: 2 | G52: 107800 | H52: 21600 | I52: 129400 | J52: 112900 | K52: 22600 | L52: 135500
A53: AssociateIII2 | B53: III | C53: Associate32 | D53: 2 | E53: Associate | F53: 3 | G53: 113400 | H53: 22700 | I53: 136100 | J53: 118900 | K53: 23800 | L53: 142700
A54: AssociateIV2 | B54: IV | C54: Associate42 | D54: 2 | E54: Associate | F54: 4 | G54: 120100 | H54: 24100 | I54: 144200 | J54: 125600 | K54: 25200 | L54: 150800
A55: AssociateV2 | B55: V | C55: Associate52 | D55: 2 | E55: Associate | F55: 5 | G55: 129300 | H55: 25900 | I55: 155200 | J55: 135300 | K55: 27100 | L55: 162400
A56: FullI2 | B56: I | C56: Full12 | D56: 2 | E56: Full | F56: 1 | G56: 120200 | H56: 24100 | I56: 144300 | J56: 125700 | K56: 25200 | L56: 150900
A57: FullII2 | B57: II | C57: Full22 | D57: 2 | E57: Full | F57: 2 | G57: 129400 | H57: 25900 | I57: 155300 | J57: 135400 | K57: 27100 | L57: 162500
A58: FullIII2 | B58: III | C58: Full32 | D58: 2 | E58: Full | F58: 3 | G58: 139400 | H58: 27900 | I58: 167300 | J58: 145900 | K58: 29200 | L58: 175100
A59: FullIV2 | B59: IV | C59: Full42 | D59: 2 | E59: Full | F59: 4 | G59: 149900 | H59: 30000 | I59: 179900 | J59: 156900 | K59: 31400 | L59: 188300
A60: FullV2 | B60: V | C60: Full52 | D60: 2 | E60: Full | F60: 5 | G60: 161100 | H60: 32300 | I60: 193400 | J60: 168700 | K60: 33800 | L60: 202500
A61: FullVI2 | B61: VI | C61: Full62 | D61: 2 | E61: Full | F61: 6 | G61: 173200 | H61: 34700 | I61: 207900 | J61: 181200 | K61: 36300 | L61: 217500
A62: FullVII2 | B62: VII | C62: Full72 | D62: 2 | E62: Full | F62: 7 | G62: 186500 | H62: 37300 | I62: 223800 | J62: 195100 | K62: 39100 | L62: 234200
A63: FullVIII2 | B63: VIII | C63: Full82 | D63: 2 | E63: Full | F63: 8 | G63: 201600 | H63: 40400 | I63: 242000 | J63: 210900 | K63: 42200 | L63: 253100
A64: FullIX2 | B64: IX | C64: Full92 | D64: 2 | E64: Full | F64: 9 | G64: 218500 | H64: 43700 | I64: 262200 | J64: 228600 | K64: 45800 | L64: 274400
A65: AssistantI3 | B65: I | C65: Assistant13 | D65: 3 | E65: Assistant | F65: 1 | G65: 82200 | H65: 24700 | I65: 106900 | J65: 86500 | K65: 26000 | L65: 112500
A66: AssistantII3 | B66: II | C66: Assistant23 | D66: 3 | E66: Assistant | F66: 2 | G66: 87100 | H66: 26200 | I66: 113300 | J66: 91300 | K66: 27400 | L66: 118700
A67: AssistantIII3 | B67: III | C67: Assistant33 | D67: 3 | E67: Assistant | F67: 3 | G67: 92100 | H67: 27700 | I67: 119800 | J67: 96400 | K67: 29000 | L67: 125400
A68: AssistantIV3 | B68: IV | C68: Assistant43 | D68: 3 | E68: Assistant | F68: 4 | G68: 97200 | H68: 29200 | I68: 126400 | J68: 101700 | K68: 30600 | L68: 132300
A69: AssistantV3 | B69: V | C69: Assistant53 | D69: 3 | E69: Assistant | F69: 5 | G69: 102400 | H69: 30800 | I69: =SUM(G69:H69) -> 133200 | J69: 107200 | K69: 32200 | L69: 139400
A70: AssistantVI3 | B70: =ROMAN(F70) -> VI | C70: =CONCATENATE(E70,F70,D70) -> Assistant63 | D70: 3 | E70: Assistant | F70: 6 | G70: 107700 | H70: 32400 | I70: 140100 | J70: 112800 | K70: 33900 | L70: =SUM(J70:K70) -> 146700
A71: =CONCATENATE(E71,B71,D71) -> AssociateI3 | B71: I | C71: Associate13 | D71: 3 | E71: Associate | F71: 1 | G71: 102500 | H71: 30800 | I71: 133300 | J71: 107300 | K71: 32200 | L71: 139500
A72: AssociateII3 | B72: II | C72: Associate23 | D72: 3 | E72: Associate | F72: 2 | G72: 107800 | H72: 32400 | I72: 140200 | J72: 112900 | K72: 33900 | L72: 146800
A73: AssociateIII3 | B73: III | C73: Associate33 | D73: 3 | E73: Associate | F73: 3 | G73: 113400 | H73: 34100 | I73: 147500 | J73: 118900 | K73: 35700 | L73: 154600
A74: AssociateIV3 | B74: IV | C74: Associate43 | D74: 3 | E74: Associate | F74: 4 | G74: 120100 | H74: 36100 | I74: 156200 | J74: 125600 | K74: 37800 | L74: 163400
A75: AssociateV3 | B75: V | C75: Associate53 | D75: 3 | E75: Associate | F75: 5 | G75: 129300 | H75: 38900 | I75: 168200 | J75: 135300 | K75: 40700 | L75: 176000
A76: FullI3 | B76: I | C76: Full13 | D76: 3 | E76: Full | F76: 1 | G76: 120200 | H76: 36100 | I76: 156300 | J76: 125700 | K76: 37800 | L76: 163500
A77: FullII3 | B77: II | C77: Full23 | D77: 3 | E77: Full | F77: 2 | G77: 129400 | H77: 38900 | I77: 168300 | J77: 135400 | K77: 40700 | L77: 176100
A78: FullIII3 | B78: III | C78: Full33 | D78: 3 | E78: Full | F78: 3 | G78: 139400 | H78: 41900 | I78: 181300 | J78: 145900 | K78: 43800 | L78: 189700
A79: FullIV3 | B79: IV | C79: Full43 | D79: 3 | E79: Full | F79: 4 | G79: 149900 | H79: 45000 | I79: 194900 | J79: 156900 | K79: 47100 | L79: 204000
A80: FullV3 | B80: V | C80: Full53 | D80: 3 | E80: Full | F80: 5 | G80: 161100 | H80: 48400 | I80: 209500 | J80: 168700 | K80: 50700 | L80: 219400
A81: FullVI3 | B81: VI | C81: Full63 | D81: 3 | E81: Full | F81: 6 | G81: 173200 | H81: 52000 | I81: 225200 | J81: 181200 | K81: 54400 | L81: 235600
A82: FullVII3 | B82: VII | C82: Full73 | D82: 3 | E82: Full | F82: 7 | G82: 186500 | H82: 56000 | I82: 242500 | J82: 195100 | K82: 58600 | L82: 253700
A83: FullVIII3 | B83: VIII | C83: Full83 | D83: 3 | E83: Full | F83: 8 | G83: 201600 | H83: 60500 | I83: 262100 | J83: 210900 | K83: 63300 | L83: 274200
A84: FullIX3 | B84: IX | C84: Full93 | D84: 3 | E84: Full | F84: 9 | G84: 218500 | H84: 65600 | I84: 284100 | J84: 228600 | K84: 68600 | L84: 297200
A85: AssistantI4 | B85: I | C85: Assistant14 | D85: 4 | E85: Assistant | F85: 1 | G85: 82200 | H85: 32900 | I85: 115100 | J85: 86500 | K85: 34600 | L85: 121100
A86: AssistantII4 | B86: II | C86: Assistant24 | D86: 4 | E86: Assistant | F86: 2 | G86: 87100 | H86: 34900 | I86: 122000 | J86: 91300 | K86: 36600 | L86: 127900
A87: AssistantIII4 | B87: III | C87: Assistant34 | D87: 4 | E87: Assistant | F87: 3 | G87: 92100 | H87: 36900 | I87: 129000 | J87: 96400 | K87: 38600 | L87: 135000
A88: AssistantIV4 | B88: IV | C88: Assistant44 | D88: 4 | E88: Assistant | F88: 4 | G88: 97200 | H88: 38900 | I88: 136100 | J88: 101700 | K88: 40700 | L88: 142400
A89: AssistantV4 | B89: V | C89: Assistant54 | D89: 4 | E89: Assistant | F89: 5 | G89: 102400 | H89: 41000 | I89: 143400 | J89: 107200 | K89: 43000 | L89: 150200
A90: AssistantVI4 | B90: VI | C90: Assistant64 | D90: 4 | E90: Assistant | F90: 6 | G90: 107700 | H90: 43200 | I90: 150900 | J90: 112800 | K90: 45200 | L90: 158000
A91: AssociateI4 | B91: I | C91: Associate14 | D91: 4 | E91: Associate | F91: 1 | G91: 102500 | H91: 41000 | I91: 143500 | J91: 107300 | K91: 43000 | L91: 150300
A92: AssociateII4 | B92: II | C92: Associate24 | D92: 4 | E92: Associate | F92: 2 | G92: 107800 | H92: 43200 | I92: 151000 | J92: 112900 | K92: 45200 | L92: 158100
A93: AssociateIII4 | B93: III | C93: Associate34 | D93: 4 | E93: Associate | F93: 3 | G93: 113400 | H93: 45400 | I93: 158800 | J93: 118900 | K93: 47600 | L93: 166500
A94: AssociateIV4 | B94: IV | C94: Associate44 | D94: 4 | E94: Associate | F94: 4 | G94: 120100 | H94: 48100 | I94: 168200 | J94: 125600 | K94: 50300 | L94: 175900
A95: AssociateV4 | B95: V | C95: Associate54 | D95: 4 | E95: Associate | F95: 5 | G95: 129300 | H95: 51800 | I95: 181100 | J95: 135300 | K95: 54200 | L95: 189500
A96: FullI4 | B96: I | C96: Full14 | D96: 4 | E96: Full | F96: 1 | G96: 120200 | H96: 48100 | I96: 168300 | J96: 125700 | K96: 50300 | L96: 176000
A97: FullII4 | B97: II | C97: Full24 | D97: 4 | E97: Full | F97: 2 | G97: 129400 | H97: 51800 | I97: 181200 | J97: 135400 | K97: 54200 | L97: 189600
A98: FullIII4 | B98: III | C98: Full34 | D98: 4 | E98: Full | F98: 3 | G98: 139400 | H98: 55800 | I98: 195200 | J98: 145900 | K98: 58400 | L98: 204300
A99: FullIV4 | B99: IV | C99: Full44 | D99: 4 | E99: Full | F99: 4 | G99: 149900 | H99: 60000 | I99: 209900 | J99: 156900 | K99: 62800 | L99: 219700
A100: FullV4 | B100: V | C100: Full54 | D100: 4 | E100: Full | F100: 5 | G100: 161100 | H100: 64500 | I100: 225600 | J100: 168700 | K100: 67500 | L100: 236200
A101: FullVI4 | B101: VI | C101: Full64 | D101: 4 | E101: Full | F101: 6 | G101: 173200 | H101: 69300 | I101: 242500 | J101: 181200 | K101: 72500 | L101: 253700
A102: FullVII4 | B102: VII | C102: Full74 | D102: 4 | E102: Full | F102: 7 | G102: 186500 | H102: 74600 | I102: 261100 | J102: 195100 | K102: 78100 | L102: 273200
A103: FullVIII4 | B103: VIII | C103: Full84 | D103: 4 | E103: Full | F103: 8 | G103: 201600 | H103: 80700 | I103: 282300 | J103: 210900 | K103: 84400 | L103: 295300
A104: FullIX4 | B104: IX | C104: Full94 | D104: 4 | E104: Full | F104: 9 | G104: 218500 | H104: 87400 | I104: 305900 | J104: 228600 | K104: 91500 | L104: 320100
A105: AssistantI5 | B105: I | C105: Assistant15 | D105: 5 | E105: Assistant | F105: 1 | G105: 82200 | H105: 41100 | I105: 123300 | J105: 86500 | K105: 43300 | L105: 129800
A106: AssistantII5 | B106: II | C106: Assistant25 | D106: 5 | E106: Assistant | F106: 2 | G106: 87100 | H106: 43600 | I106: 130700 | J106: 91300 | K106: 45700 | L106: 137000
A107: AssistantIII5 | B107: III | C107: Assistant35 | D107: 5 | E107: Assistant | F107: 3 | G107: 92100 | H107: 46100 | I107: 138200 | J107: 96400 | K107: 48200 | L107: 144600
A108: AssistantIV5 | B108: IV | C108: Assistant45 | D108: 5 | E108: Assistant | F108: 4 | G108: 97200 | H108: 48600 | I108: 145800 | J108: 101700 | K108: 50900 | L108: 152600
A109: AssistantV5 | B109: V | C109: Assistant55 | D109: 5 | E109: Assistant | F109: 5 | G109: 102400 | H109: 51300 | I109: 153700 | J109: 107200 | K109: 53700 | L109: 160900
A110: AssistantVI5 | B110: VI | C110: Assistant65 | D110: 5 | E110: Assistant | F110: 6 | G110: 107700 | H110: 53900 | I110: 161600 | J110: 112800 | K110: 56500 | L110: 169300
A111: AssociateI5 | B111: I | C111: Associate15 | D111: 5 | E111: Associate | F111: 1 | G111: 102500 | H111: 51300 | I111: 153800 | J111: 107300 | K111: 53700 | L111: 161000
A112: AssociateII5 | B112: II | C112: Associate25 | D112: 5 | E112: Associate | F112: 2 | G112: 107800 | H112: 53900 | I112: 161700 | J112: 112900 | K112: 56500 | L112: 169400
A113: AssociateIII5 | B113: III | C113: Associate35 | D113: 5 | E113: Associate | F113: 3 | G113: 113400 | H113: 56700 | I113: 170100 | J113: 118900 | K113: 59500 | L113: 178400
A114: AssociateIV5 | B114: IV | C114: Associate45 | D114: 5 | E114: Associate | F114: 4 | G114: 120100 | H114: 60100 | I114: 180200 | J114: 125600 | K114: 62900 | L114: 188500
A115: AssociateV5 | B115: V | C115: Associate55 | D115: 5 | E115: Associate | F115: 5 | G115: 129300 | H115: 64700 | I115: 194000 | J115: 135300 | K115: 67700 | L115: 203000
A116: FullI5 | B116: I | C116: Full15 | D116: 5 | E116: Full | F116: 1 | G116: 120200 | H116: 60100 | I116: 180300 | J116: 125700 | K116: 62900 | L116: 188600
A117: FullII5 | B117: II | C117: Full25 | D117: 5 | E117: Full | F117: 2 | G117: 129400 | H117: 64700 | I117: 194100 | J117: 135400 | K117: 67700 | L117: 203100
A118: FullIII5 | B118: III | C118: Full35 | D118: 5 | E118: Full | F118: 3 | G118: 139400 | H118: 69700 | I118: 209100 | J118: 145900 | K118: 73000 | L118: 218900
A119: FullIV5 | B119: IV | C119: Full45 | D119: 5 | E119: Full | F119: 4 | G119: 149900 | H119: 75000 | I119: 224900 | J119: 156900 | K119: 78500 | L119: 235400
A120: FullV5 | B120: V | C120: Full55 | D120: 5 | E120: Full | F120: 5 | G120: 161100 | H120: 80600 | I120: 241700 | J120: 168700 | K120: 84400 | L120: 253100
A121: FullVI5 | B121: VI | C121: Full65 | D121: 5 | E121: Full | F121: 6 | G121: 173200 | H121: 86600 | I121: 259800 | J121: 181200 | K121: 90600 | L121: 271800
A122: FullVII5 | B122: VII | C122: Full75 | D122: 5 | E122: Full | F122: 7 | G122: 186500 | H122: 93300 | I122: 279800 | J122: 195100 | K122: 97600 | L122: 292700
A123: FullVIII5 | B123: VIII | C123: Full85 | D123: 5 | E123: Full | F123: 8 | G123: 201600 | H123: 100800 | I123: 302400 | J123: 210900 | K123: 105500 | L123: 316400
A124: FullIX5 | B124: IX | C124: Full95 | D124: 5 | E124: Full | F124: 9 | G124: 218500 | H124: 109300 | I124: 327800 | J124: 228600 | K124: 114300 | L124: 342900
A125: AssistantI6 | B125: I | C125: Assistant16 | D125: 6 | E125: Assistant | F125: 1 | G125: 82200 | H125: 53500 | I125: 135700 | J125: 86500 | K125: 56300 | L125: 142800
A126: AssistantII6 | B126: II | C126: Assistant26 | D126: 6 | E126: Assistant | F126: 2 | G126: 87100 | H126: 56700 | I126: 143800 | J126: 91300 | K126: 59400 | L126: 150700
A127: AssistantIII6 | B127: III | C127: Assistant36 | D127: 6 | E127: Assistant | F127: 3 | G127: 92100 | H127: 59900 | I127: 152000 | J127: 96400 | K127: 62700 | L127: 159100
A128: AssistantIV6 | B128: IV | C128: Assistant46 | D128: 6 | E128: Assistant | F128: 4 | G128: 97200 | H128: 63200 | I128: 160400 | J128: 101700 | K128: 66200 | L128: 167900
A129: AssistantV6 | B129: V | C129: Assistant56 | D129: 6 | E129: Assistant | F129: 5 | G129: 102400 | H129: 66700 | I129: 169100 | J129: 107200 | K129: 69800 | L129: 177000
A130: AssistantVI6 | B130: VI | C130: Assistant66 | D130: 6 | E130: Assistant | F130: 6 | G130: 107700 | H130: 70100 | I130: 177800 | J130: 112800 | K130: 73400 | L130: 186200
A131: AssociateI6 | B131: I | C131: Associate16 | D131: 6 | E131: Associate | F131: 1 | G131: 102500 | H131: 66700 | I131: 169200 | J131: 107300 | K131: 69800 | L131: 177100
A132: AssociateII6 | B132: II | C132: Associate26 | D132: 6 | E132: Associate | F132: 2 | G132: 107800 | H132: 70100 | I132: 177900 | J132: 112900 | K132: 73400 | L132: 186300
A133: AssociateIII6 | B133: III | C133: Associate36 | D133: 6 | E133: Associate | F133: 3 | G133: 113400 | H133: 73800 | I133: =SUM(G133:H133) -> 187200 | J133: 118900 | K133: 77300 | L133: 196200
A134: AssociateIV6 | B134: =ROMAN(F134) -> IV | C134: =CONCATENATE(E134,F134,D134) -> Associate46 | D134: 6 | E134: Associate | F134: 4 | G134: 120100 | H134: 78200 | I134: 198300 | J134: 125600 | K134: 81800 | L134: =SUM(J134:K134) -> 207400
A135: =CONCATENATE(E135,B135,D135) -> AssociateV6 | B135: V | C135: Associate56 | D135: 6 | E135: Associate | F135: 5 | G135: 129300 | H135: 84200 | I135: 213500 | J135: 135300 | K135: 88100 | L135: 223400
A136: FullI6 | B136: I | C136: Full16 | D136: 6 | E136: Full | F136: 1 | G136: 120200 | H136: 78200 | I136: 198400 | J136: 125700 | K136: 81800 | L136: 207500
A137: FullII6 | B137: II | C137: Full26 | D137: 6 | E137: Full | F137: 2 | G137: 129400 | H137: 84200 | I137: 213600 | J137: 135400 | K137: 88100 | L137: 223500
A138: FullIII6 | B138: III | C138: Full36 | D138: 6 | E138: Full | F138: 3 | G138: 139400 | H138: 90700 | I138: 230100 | J138: 145900 | K138: 94900 | L138: 240800
A139: FullIV6 | B139: IV | C139: Full46 | D139: 6 | E139: Full | F139: 4 | G139: 149900 | H139: 97500 | I139: 247400 | J139: 156900 | K139: 102000 | L139: 258900
A140: FullV6 | B140: V | C140: Full56 | D140: 6 | E140: Full | F140: 5 | G140: 161100 | H140: 104800 | I140: 265900 | J140: 168700 | K140: 109700 | L140: 278400
A141: FullVI6 | B141: VI | C141: Full66 | D141: 6 | E141: Full | F141: 6 | G141: 173200 | H141: 112600 | I141: 285800 | J141: 181200 | K141: 117800 | L141: 299000
A142: FullVII6 | B142: VII | C142: Full76 | D142: 6 | E142: Full | F142: 7 | G142: 186500 | H142: 121300 | I142: 307800 | J142: 195100 | K142: 126900 | L142: 322000
A143: FullVIII6 | B143: VIII | C143: Full86 | D143: 6 | E143: Full | F143: 8 | G143: 201600 | H143: 131100 | I143: 332700 | J143: 210900 | K143: 137100 | L143: 348000
A144: FullIX6 | B144: IX | C144: Full96 | D144: 6 | E144: Full | F144: 9 | G144: 218500 | H144: 142100 | I144: 360600 | J144: 228600 | K144: 148600 | L144: 377200
A145: AssistantI7 | B145: I | C145: Assistant17 | D145: 7 | E145: Assistant | F145: 1 | G145: 82200 | H145: 65800 | I145: 148000 | J145: 86500 | K145: 69200 | L145: 155700
A146: AssistantII7 | B146: II | C146: Assistant27 | D146: 7 | E146: Assistant | F146: 2 | G146: 87100 | H146: 69700 | I146: 156800 | J146: 91300 | K146: 73100 | L146: 164400
A147: AssistantIII7 | B147: III | C147: Assistant37 | D147: 7 | E147: Assistant | F147: 3 | G147: 92100 | H147: 73700 | I147: 165800 | J147: 96400 | K147: 77200 | L147: 173600
A148: AssistantIV7 | B148: IV | C148: Assistant47 | D148: 7 | E148: Assistant | F148: 4 | G148: 97200 | H148: 77800 | I148: 175000 | J148: 101700 | K148: 81400 | L148: 183100
A149: AssistantV7 | B149: V | C149: Assistant57 | D149: 7 | E149: Assistant | F149: 5 | G149: 102400 | H149: 82000 | I149: 184400 | J149: 107200 | K149: 85900 | L149: 193100
A150: AssistantVI7 | B150: VI | C150: Assistant67 | D150: 7 | E150: Assistant | F150: 6 | G150: 107700 | H150: 86300 | I150: 194000 | J150: 112800 | K150: 90400 | L150: 203200
A151: AssociateI7 | B151: I | C151: Associate17 | D151: 7 | E151: Associate | F151: 1 | G151: 102500 | H151: 82000 | I151: 184500 | J151: 107300 | K151: 85900 | L151: 193200
A152: AssociateII7 | B152: II | C152: Associate27 | D152: 7 | E152: Associate | F152: 2 | G152: 107800 | H152: 86300 | I152: 194100 | J152: 112900 | K152: 90400 | L152: 203300
A153: AssociateIII7 | B153: III | C153: Associate37 | D153: 7 | E153: Associate | F153: 3 | G153: 113400 | H153: 90800 | I153: 204200 | J153: 118900 | K153: 95200 | L153: 214100
A154: AssociateIV7 | B154: IV | C154: Associate47 | D154: 7 | E154: Associate | F154: 4 | G154: 120100 | H154: 96200 | I154: 216300 | J154: 125600 | K154: 100600 | L154: 226200
A155: AssociateV7 | B155: V | C155: Associate57 | D155: 7 | E155: Associate | F155: 5 | G155: 129300 | H155: 103600 | I155: 232900 | J155: 135300 | K155: 108400 | L155: 243700
A156: FullI7 | B156: I | C156: Full17 | D156: 7 | E156: Full | F156: 1 | G156: 120200 | H156: 96200 | I156: 216400 | J156: 125700 | K156: 100600 | L156: 226300
A157: FullII7 | B157: II | C157: Full27 | D157: 7 | E157: Full | F157: 2 | G157: 129400 | H157: 103600 | I157: 233000 | J157: 135400 | K157: 108400 | L157: 243800
A158: FullIII7 | B158: III | C158: Full37 | D158: 7 | E158: Full | F158: 3 | G158: 139400 | H158: 111600 | I158: 251000 | J158: 145900 | K158: 116800 | L158: 262700
A159: FullIV7 | B159: IV | C159: Full47 | D159: 7 | E159: Full | F159: 4 | G159: 149900 | H159: 120000 | I159: 269900 | J159: 156900 | K159: 125600 | L159: 282500
A160: FullV7 | B160: V | C160: Full57 | D160: 7 | E160: Full | F160: 5 | G160: 161100 | H160: 128900 | I160: 290000 | J160: 168700 | K160: 135000 | L160: 303700
A161: FullVI7 | B161: VI | C161: Full67 | D161: 7 | E161: Full | F161: 6 | G161: 173200 | H161: 138600 | I161: 311800 | J161: 181200 | K161: 145000 | L161: 326200
A162: FullVII7 | B162: VII | C162: Full77 | D162: 7 | E162: Full | F162: 7 | G162: 186500 | H162: 149200 | I162: 335700 | J162: 195100 | K162: 156100 | L162: 351200
A163: FullVIII7 | B163: VIII | C163: Full87 | D163: 7 | E163: Full | F163: 8 | G163: 201600 | H163: 161300 | I163: 362900 | J163: 210900 | K163: 168800 | L163: 379700
A164: FullIX7 | B164: IX | C164: Full97 | D164: 7 | E164: Full | F164: 9 | G164: 218500 | H164: 174800 | I164: 393300 | J164: 228600 | K164: 182900 | L164: 411500
A165: AssistantI8 | B165: I | C165: Assistant18 | D165: 8 | E165: Assistant | F165: 1 | G165: 82200 | H165: 82200 | I165: 164400 | J165: 86500 | K165: 86500 | L165: 173000
A166: AssistantII8 | B166: II | C166: Assistant28 | D166: 8 | E166: Assistant | F166: 2 | G166: 87100 | H166: 87100 | I166: 174200 | J166: 91300 | K166: 91300 | L166: 182600
A167: AssistantIII8 | B167: III | C167: Assistant38 | D167: 8 | E167: Assistant | F167: 3 | G167: 92100 | H167: 92100 | I167: 184200 | J167: 96400 | K167: 96400 | L167: 192800
A168: AssistantIV8 | B168: IV | C168: Assistant48 | D168: 8 | E168: Assistant | F168: 4 | G168: 97200 | H168: 97200 | I168: 194400 | J168: 101700 | K168: 101700 | L168: 203400
A169: AssistantV8 | B169: V | C169: Assistant58 | D169: 8 | E169: Assistant | F169: 5 | G169: 102400 | H169: 102500 | I169: 204900 | J169: 107200 | K169: 107300 | L169: 214500
A170: AssistantVI8 | B170: VI | C170: Assistant68 | D170: 8 | E170: Assistant | F170: 6 | G170: 107700 | H170: 107800 | I170: 215500 | J170: 112800 | K170: 112900 | L170: 225700
A171: AssociateI8 | B171: I | C171: Associate18 | D171: 8 | E171: Associate | F171: 1 | G171: 102500 | H171: 102500 | I171: 205000 | J171: 107300 | K171: 107300 | L171: 214600
A172: AssociateII8 | B172: II | C172: Associate28 | D172: 8 | E172: Associate | F172: 2 | G172: 107800 | H172: 107800 | I172: 215600 | J172: 112900 | K172: 112900 | L172: 225800
A173: AssociateIII8 | B173: III | C173: Associate38 | D173: 8 | E173: Associate | F173: 3 | G173: 113400 | H173: 113400 | I173: 226800 | J173: 118900 | K173: 118900 | L173: 237800
A174: AssociateIV8 | B174: IV | C174: Associate48 | D174: 8 | E174: Associate | F174: 4 | G174: 120100 | H174: 120200 | I174: 240300 | J174: 125600 | K174: 125700 | L174: 251300
A175: AssociateV8 | B175: V | C175: Associate58 | D175: 8 | E175: Associate | F175: 5 | G175: 129300 | H175: 129400 | I175: 258700 | J175: 135300 | K175: 135400 | L175: 270700
A176: FullI8 | B176: I | C176: Full18 | D176: 8 | E176: Full | F176: 1 | G176: 120200 | H176: 120200 | I176: 240400 | J176: 125700 | K176: 125700 | L176: 251400
A177: FullII8 | B177: II | C177: Full28 | D177: 8 | E177: Full | F177: 2 | G177: 129400 | H177: 129400 | I177: 258800 | J177: 135400 | K177: 135400 | L177: 270800
A178: FullIII8 | B178: III | C178: Full38 | D178: 8 | E178: Full | F178: 3 | G178: 139400 | H178: 139400 | I178: 278800 | J178: 145900 | K178: 145900 | L178: 291800
A179: FullIV8 | B179: IV | C179: Full48 | D179: 8 | E179: Full | F179: 4 | G179: 149900 | H179: 149900 | I179: 299800 | J179: 156900 | K179: 156900 | L179: 313800
A180: FullV8 | B180: V | C180: Full58 | D180: 8 | E180: Full | F180: 5 | G180: 161100 | H180: 161100 | I180: 322200 | J180: 168700 | K180: 168700 | L180: 337400
A181: FullVI8 | B181: VI | C181: Full68 | D181: 8 | E181: Full | F181: 6 | G181: 173200 | H181: 173200 | I181: 346400 | J181: 181200 | K181: 181200 | L181: 362400
A182: FullVII8 | B182: VII | C182: Full78 | D182: 8 | E182: Full | F182: 7 | G182: 186500 | H182: 186500 | I182: 373000 | J182: 195100 | K182: 195100 | L182: 390200
A183: FullVIII8 | B183: VIII | C183: Full88 | D183: 8 | E183: Full | F183: 8 | G183: 201600 | H183: 201600 | I183: 403200 | J183: 210900 | K183: 210900 | L183: 421800
A184: FullIX8 | B184: IX | C184: Full98 | D184: 8 | E184: Full | F184: 9 | G184: 218500 | H184: 218500 | I184: 437000 | J184: 228600 | K184: 228600 | L184: 457200
A185: AssistantI9 | B185: I | C185: Assistant19 | D185: 9 | E185: Assistant | F185: 1 | G185: 82200 | H185: 102800 | I185: 185000 | J185: 86500 | K185: 108200 | L185: 194700
A186: AssistantII9 | B186: II | C186: Assistant29 | D186: 9 | E186: Assistant | F186: 2 | G186: 87100 | H186: 108900 | I186: 196000 | J186: 91300 | K186: 114200 | L186: 205500
A187: AssistantIII9 | B187: III | C187: Assistant39 | D187: 9 | E187: Assistant | F187: 3 | G187: 92100 | H187: 115200 | I187: 207300 | J187: 96400 | K187: 120500 | L187: 216900
A188: AssistantIV9 | B188: IV | C188: Assistant49 | D188: 9 | E188: Assistant | F188: 4 | G188: 97200 | H188: 121500 | I188: 218700 | J188: 101700 | K188: 127200 | L188: 228900
A189: AssistantV9 | B189: V | C189: Assistant59 | D189: 9 | E189: Assistant | F189: 5 | G189: 102400 | H189: 128200 | I189: 230600 | J189: 107200 | K189: 134200 | L189: 241400
A190: AssistantVI9 | B190: VI | C190: Assistant69 | D190: 9 | E190: Assistant | F190: 6 | G190: 107700 | H190: 134800 | I190: 242500 | J190: 112800 | K190: 141200 | L190: 254000
A191: AssociateI9 | B191: I | C191: Associate19 | D191: 9 | E191: Associate | F191: 1 | G191: 102500 | H191: 128200 | I191: 230700 | J191: 107300 | K191: 134200 | L191: 241500
A192: AssociateII9 | B192: II | C192: Associate29 | D192: 9 | E192: Associate | F192: 2 | G192: 107800 | H192: 134800 | I192: 242600 | J192: 112900 | K192: 141200 | L192: 254100
A193: AssociateIII9 | B193: III | C193: Associate39 | D193: 9 | E193: Associate | F193: 3 | G193: 113400 | H193: 141800 | I193: 255200 | J193: 118900 | K193: 148700 | L193: 267600
A194: AssociateIV9 | B194: IV | C194: Associate49 | D194: 9 | E194: Associate | F194: 4 | G194: 120100 | H194: 150300 | I194: 270400 | J194: 125600 | K194: 157200 | L194: 282800
A195: AssociateV9 | B195: V | C195: Associate59 | D195: 9 | E195: Associate | F195: 5 | G195: 129300 | H195: 161800 | I195: 291100 | J195: 135300 | K195: 169300 | L195: 304600
A196: FullI9 | B196: I | C196: Full19 | D196: 9 | E196: Full | F196: 1 | G196: 120200 | H196: 150300 | I196: 270500 | J196: 125700 | K196: 157200 | L196: 282900
A197: FullII9 | B197: II | C197: Full29 | D197: 9 | E197: Full | F197: 2 | G197: 129400 | H197: 161800 | I197: =SUM(G197:H197) -> 291200 | J197: 135400 | K197: 169300 | L197: 304700
A198: FullIII9 | B198: =ROMAN(F198) -> III | C198: =CONCATENATE(E198,F198,D198) -> Full39 | D198: 9 | E198: Full | F198: 3 | G198: 139400 | H198: 174300 | I198: 313700 | J198: 145900 | K198: 182400 | L198: =SUM(J198:K198) -> 328300
A199: =CONCATENATE(E199,B199,D199) -> FullIV9 | B199: IV | C199: Full49 | D199: 9 | E199: Full | F199: 4 | G199: 149900 | H199: 187400 | I199: 337300 | J199: 156900 | K199: 196200 | L199: 353100
A200: FullV9 | B200: V | C200: Full59 | D200: 9 | E200: Full | F200: 5 | G200: 161100 | H200: 201400 | I200: 362500 | J200: 168700 | K200: 210900 | L200: 379600
A201: FullVI9 | B201: VI | C201: Full69 | D201: 9 | E201: Full | F201: 6 | G201: 173200 | H201: 216500 | I201: 389700 | J201: 181200 | K201: 226500 | L201: 407700
... 3 more rows

Sheet APU Scale (hidden)
A1: Scale | B1: Multiplier
A2: 0 | B2: 1
A3: 1 | B3: 1.1
A4: 2 | B4: 1.2
A5: 3 | B5: 1.3
A6: 4 | B6: 1.4
A7: 5 | B7: 1.5
A8: 6 | B8: 1.65
A9: 7 | B9: 1.8
A10: 8 | B10: 2
A11: 9 | B11: 2.25
